Workbook

Sheet Examples (hidden)
B1: Teal | C1: Red | D1: Light grey | E1: Mid-grey | F1: Grey | G1: Light teal | H1: Mid-red | I1: Light red | L1: Teal solid | M1: Red solid | N1: Mid-grey | O1: Teal dashes | P1: Red dashes | Q1: Grey dashes | S1: X value | T1: 1st Y value | U1: 2nd Y value | X1: Teal | Y1: Red | Z1: Mid-red | AA1: Mid-grey
A2: 2003-04 | B2: 36.19 | C2: 36.88 | D2: 21.56 | E2: 5.36 | F2: 3.01 | G2: 10 | H2: 3.01 | I2: 10 | K2: 2003-04 | L2: 33.19 | M2: 36.88 | N2: 21.56 | O2: 5.36 | P2: 3.01 | Q2: 10 | S2: 1.8 | T2: 10 | U2: 17 | W2: 2003-04 | X2: 33.19 | Y2: 36.88 | Z2: 21.56 | AA2: 5.36
A3: 2004-05 | B3: 39.39 | C3: 32.02 | D3: 21.6 | E3: 7.01 | F3: 3.36 | G3: 12 | H3: 3.36 | I3: 12 | K3: 2004-05 | L3: 39.39 | M3: 32.02 | N3: 21.6 | O3: 7.01 | P3: 3.36 | Q3: 12 | S3: 2.3 | T3: 12 | U3: 9 | W3: 2004-05 | X3: 39.39 | Y3: 32.02 | Z3: 21.6 | AA3: 7.01
A4: 2005-06 | B4: 42.78 | C4: 29.91 | D4: 18.35 | E4: 6.33 | F4: 2.63 | G4: 14 | H4: 2.63 | I4: 14 | K4: 2005-06 | L4: 42.78 | M4: 29.91 | N4: 18.35 | O4: 6.33 | P4: 2.63 | Q4: 14 | S4: 3.7 | T4: 16 | U4: 14 | W4: 2005-06 | X4: 42.78 | Y4: 29.91 | Z4: 18.35 | AA4: 6.33
A5: 2006-07 | B5: 42.13 | C5: 26.53 | D5: 21.6 | E5: 7.01 | F5: 2.72 | G5: 16 | H5: 2.72 | I5: 16 | K5: 2006-07 | L5: 42.13 | M5: 26.53 | N5: 21.6 | O5: 7.01 | P5: 2.72 | Q5: 16 | S5: 4.1 | T5: 8 | U5: 23 | W5: 2006-07 | X5: 42.13 | Y5: 26.53 | Z5: 21.6 | AA5: 7.01
A6: 2007-08 | B6: 41.69 | C6: 24.76 | D6: 23.98 | E6: 7 | F6: 2.57 | G6: 18 | H6: 2.57 | I6: 18 | K6: 2007-08 | L6: 41.69 | M6: 24.76 | N6: 23.98 | O6: 7 | P6: 2.57 | Q6: 18 | S6: 5.5 | T6: 14 | U6: 27 | W6: 2007-08 | X6: 41.69 | Y6: 24.76 | Z6: 23.98 | AA6: 7
A7: 2008-09 | B7: 39.39 | C7: 32.02 | D7: 21.6 | E7: 7.01 | F7: 3.36 | G7: 12 | H7: 3.36 | I7: 12 | K7: 2008-09 | L7: 39.39 | M7: 32.02 | N7: 21.6 | O7: 7.01 | P7: 3.36 | Q7: 12 | W7: 2008-09 | X7: 39.39 | Y7: 32.02 | Z7: 21.6 | AA7: 7.01
A8: 2009-10 | B8: 42.13 | C8: 26.53 | D8: 21.6 | E8: 7.01 | F8: 2.72 | G8: 16 | H8: 2.72 | I8: 16 | K8: 2009-10 | L8: 42.13 | M8: 26.53 | N8: 21.6 | O8: 7.01 | P8: 2.72 | Q8: 16 | W8: 2009-10 | X8: 42.13 | Y8: 26.53 | Z8: 21.6 | AA8: 7.01
A9: 2010-11 | B9: 45 | C9: 22 | D9: 26 | E9: 8 | F9: 2 | G9: 20 | H9: 2 | I9: 20 | K9: 2010-11 | L9: 45 | M9: 22 | N9: 26 | O9: 8 | P9: 2 | Q9: 20 | W9: 2010-11 | X9: 45 | Y9: 22 | Z9: 26 | AA9: 8
A11: – en rule for when needed
S17: X value | T17: 1st Y value | U17: 2nd Y value | V17: 3rd Y value | W17: 4th Y value | X17: 5th Y value | Y17: 6th Y value
S18: 1.8 | T18: 10 | U18: 17 | V18: 24 | W18: 20 | X18: 22 | Y18: 15
S19: 2.3 | T19: 12 | U19: 9 | V19: 6 | W19: 8 | X19: 14 | Y19: 18
S20: 3.7 | T20: 16 | U20: 14 | V20: 12 | W20: 10 | X20: 8 | Y20: 6
S21: 4.1 | T21: 8 | U21: 23 | V21: 38 | W21: 25 | X21: 30 | Y21: 17
S22: 5.5 | T22: 14 | U22: 27 | V22: 5 | W22: 18 | X22: 31 | Y22: 26

Sheet Instructions
C9: ESTIMATING PRODUCTIVITY GROWTH AND VALUE ADDED OUTCOMES
C10: Note: This spreadsheet contains macros, please ensure macros are enabled on your system for full functionality
C12: Background | D12: This spreadsheet allows the calculation of adoption profiles for the uptake of innovations within horticulture industries.
D13: Full documentation is available at: [provide link]
D14: The spreadsheet provides a facility for choosing adoption parameters for a set of technology groups
D15: The spreadsheet the converts the resulting productivity shocks into projected value added for the relevant industry
D17: 1. Start with the ‘Questionnaire’ sheet For each of the four groupings of innovation, answer the provided series of questions to inform the selection of values for the adoption curve parameters.
C18: Key steps | D18: 2. Set two scenarios Go to the ‘Adoption profile’ sheet, in cells C2 and C3, use the drop-down menus to select the relevant Industry and type of Productivity (Labour or Multifactor productivity).
D19: 4. Set the benefit and adoption parameters for each scenario: You’ll need to enter values for each of the four productivity improvements in the following cells: a. Productivity benefit: Use cells C8 to C11 (Scenario 1) or J8 to J11 (Scenario 2) b. Maximum adoption rate: Use cells D8 to D11 or K8 to K11. c. Year for 50% adoption (‘half adoption’): Use cells E8 to E11 or L8 to L11. Note: Cells G8 to G11 and L8 to L11 show what the half adoption year would be if 1% adoption is expected by 2025. This is to help you frame your inputs. d. Rate of adoption: Use the drop-down menus in cells F8 to F11 or M8 to M11 to select a rate. Descriptions of each adoption rate and their corresponding parameters are listed in the ‘Sets’ sheet.
D20: 5. View the calculated results: The spreadsheet will automatically display the resulting adoption profiles and productivity improvements in the section below your inputs.
D21: 6. See projected value added: Go to the ‘Results’ sheet to view the final projections for value added based on your inputs.

Sheet Questionnaire
A2: Provide a score for each of the factors listed
A4: Driver | B4: Question | C4: Score (1–5)
A5: Factors determining the maximum adoption rate
A6: Technical fit / agronomic compatibility | B6: How many businesses in your industry meet the agronomic or technical pre‑conditions for adopting the technology (1 = a few, 5 = most or all)? | C6: 4
A7: Capital intensity vs. business size | B7: Relative to annual revenue, how high is the upfront capital cost of adopting (1 = negligible, 5 = prohibitively high)? | C7: 1
A8: Complementary infrastructure | B8: Are the necessary complementary services (e.g., broadband, cold‑chain, specialist technicians) widely available (1 = not available, 5 = widely available)? | C8: 5
A9: Regulation & certification | B9: Do regulations, licences or certification schemes materially restrict uptake (1 = not at all, 5 = very restrictive)? | C9: 1
A10: Strategic substitutes | B10: Are there low‑cost substitute technologies that can deliver comparable benefits (1 = none, 5 = many strong substitutes)? | C10: 1
A11: End‑user heterogeneity | B11: How uniform are skills, risk tolerance and land tenure across potential adopters (1 = very uniform, 5 = highly varied)? | C11: 1
B12: Average | C12: =AVERAGE($C$6, (6 - $C$7), $C$8, (6 - $C$9), (6 - $C$10), (6 - $C$11)) -> 4.833333333 | D12: (calculated average, do not alter)
A14: Factors determing the time to half adoption
A15: Cost-decline & pay‑back period | B15: At today’s prices, what is the typical pay‑back period in years (1 = <1yr, 5 = >10yrs)? | C15: 1
A16: Asset replacement cycle | B16: How often do businesses replace the current asset/processes this technology would supersede (1 = yearly, 5 = >15yrs)? | C16: 1
A17: Visibility of demonstrators | B17: How easy is it for potential adopters to observe working demonstrations or peer examples (1 = not easy, 5 = very easy)? | C17: 5
A18: Supply‑chain ramp‑up | B18: Can suppliers scale production quickly if demand surges (1 = hard to scale , 5 = easily scale)? | C18: 5
A19: Policy / price shocks | B19: Are there policy instruments or commodity‑price trends that could accelerate adoption ((1 = no instruments, 5 = many instruments)? | C19: 5
A20: Macroeconomic & credit conditions | B20: How accessible is credit and how stable are relevant input/output prices (1 = not accesable, unstable, 5 = easily accesable)? | C20: 5
B21: Average | C21: =AVERAGE((6 - $C$15), (6 - $C$16), $C$17, $C$18, $C$19, $C$20) -> 5 | D21: (calculated average, do not alter)
A23: Factors determing the speed of adoption
A24: Network density / social contagion | B24: How tight‑knit are local or industry networks for sharing know‑how and success stories (1 = not tight knit, 5 =very tight knit)? | C24: 2
A25: Marketing & extension intensity | B25: What is the level of active promotion, field‑days or advisory support for the technology (1 = negligible, 5 = high)? | C25: 2
A26: Modularity & ease of trial | B26: Can the technology be trial‑installed on a small scale before full roll‑out (1 = hard to trial, 5 = easy to trial)? | C26: 5
A27: Competitive pressure | B27: Do adopters gain a cost or quality advantage that pressures rivals to follow quickly (1 = little advantage, 5 = high advantage)? | C27: 5
A28: Supply‑chain elasticity | B28: Is there sufficient delivery & service capacity to deliver rapid roll‑outs (1 = insufficient, 5 = more than sufficient)? | C28: 5
A29: Risk & complexity | B29: How great are the perceived technical or other risks and learning requirements? (1 = very low, 5 = very high) | C29: 1
B30: Average | C30: =AVERAGE($C$24, $C$25, $C$26, $C$27, $C$28, (6 - $C$29)) -> 4 | D30: (calculated average, do not alter)
A32: Implied values for adoption spreadsheet | C32: (Calculated values, do not alter)
A34: Maximum adoption rate | B34: =Sets!E19 -> 0.8708333333
A35: Year of half adoption | B35: =Sets!E20 -> 2026
A36: Speed of adoption | B36: =Sets!E21 -> Quick

Sheet Adoption profile
A2: Choose Horticulture sector: | C2: Apples | E2: (Drop down menu)
A3: Choose type of productivity: | C3: Multifactor productivity | E3: (Drop down menu)
B5: Scenario 1 | C5: (Choose values for darker grey cells that are bold) | I5: Scenario 2 | J5: (Choose values for darker grey cells that are bold)
B6: Source | C6: Additional productivity with full (%) adoption (input value) | D6: Maximum adoption (input value) | E6: Year when the adoption achieves half of the maximum adoption rate (input value) | F6: Speed to reach maximim adoption (choose from drop down menu) | G6: For reference: Implied midpoint year if initial adoption is 1% in 2025 | I6: Source | J6: Additional productivity with full (%) adoption (input value) | K6: Maximum adoption (input value) | L6: Year when the adoption achieves half of the maximum adoption rate (input value) | M6: Speed to reach maximim adoption (choose from drop down menu) | N6: For reference: Implied midpoint year if initial adoption is 1% in 2025
C7: %pa | D7: % | E7: Year | J7: %pa | K7: % | L7: Year
B8: Production cost analysis | C8: 0.1 | D8: 0.9 | E8: 2026 | F8: Quick | G8: =1/INDEX(Sets!$C$8:$C$12,MATCH('Adoption profile'!F8,Sets!$B$8:$B$12,))*LN('Adoption profile'!D8/(1%)-1)+2025 -> 2030.984848 | I8: =B8 -> Production cost analysis | J8: 0.12 | K8: 0.5 | L8: 2033 | M8: Normal | N8: =1/INDEX(Sets!$C$8:$C$12,MATCH('Adoption profile'!M8,Sets!$B$8:$B$12,))*LN('Adoption profile'!K8/(1%)-1)+2025 -> 2032.783641
B9: Automated farm data collection | C9: 0.12 | D9: 0.63 | E9: 2033 | F9: Normal | G9: =1/INDEX(Sets!$C$8:$C$12,MATCH('Adoption profile'!F9,Sets!$B$8:$B$12,))*LN('Adoption profile'!D9/(1%)-1)+2025 -> 2033.254269 | I9: =B9 -> Automated farm data collection | J9: 0.12 | K9: 0.63 | L9: 2033 | M9: Quick | N9: =1/INDEX(Sets!$C$8:$C$12,MATCH('Adoption profile'!M9,Sets!$B$8:$B$12,))*LN('Adoption profile'!K9/(1%)-1)+2025 -> 2030.502846
B10: ML and AI | C10: 0.07 | D10: 0.56 | E10: 2033 | F10: Normal | G10: =1/INDEX(Sets!$C$8:$C$12,MATCH('Adoption profile'!F10,Sets!$B$8:$B$12,))*LN('Adoption profile'!D10/(1%)-1)+2025 -> 2033.014666 | I10: ML and AI | J10: 0.02 | K10: 0.56 | L10: 2031 | M10: Quick | N10: =1/INDEX(Sets!$C$8:$C$12,MATCH('Adoption profile'!M10,Sets!$B$8:$B$12,))*LN('Adoption profile'!K10/(1%)-1)+2025 -> 2030.343111
B11: Mechanisation and automation | C11: 0.08 | D11: 0.49 | E11: 2030 | F11: Normal | G11: =1/INDEX(Sets!$C$8:$C$12,MATCH('Adoption profile'!F11,Sets!$B$8:$B$12,))*LN('Adoption profile'!D11/(1%)-1)+2025 -> 2032.742402 | I11: Mechanisation and automation | J11: 0.05 | K11: 0.49 | L11: 2030 | M11: Normal | N11: =1/INDEX(Sets!$C$8:$C$12,MATCH('Adoption profile'!M11,Sets!$B$8:$B$12,))*LN('Adoption profile'!K11/(1%)-1)+2025 -> 2032.742402
C30: Scenario 1 | J30: Scenario 2
C31: Adoption profile | J31: Adoption profile
C32: =TRANSPOSE(B8:B11) -> Production cost analysis | D32: Automated farm data collection | E32: ML and AI | F32: Mechanisation and automation | J32: =TRANSPOSE(I8:I11) -> Production cost analysis | K32: Automated farm data collection | L32: ML and AI | M32: Mechanisation and automation
B33: 2025 | C33: =$D$8/(1+EXP(-INDEX(Sets!$C$8:$C$12,MATCH('Adoption profile'!$F$8,Sets!$B$8:$B$12,))*('Adoption profile'!$B33-'Adoption profile'!$E$8))) -> 0.2887391707 | D33: =$D$9/(1+EXP(-INDEX(Sets!$C$8:$C$12,MATCH('Adoption profile'!$F$9,Sets!$B$8:$B$12,))*('Adoption profile'!$B33-'Adoption profile'!$E$9))) -> 0.01133131228 | E33: =$D$10/(1+EXP(-INDEX(Sets!$C$8:$C$12,MATCH('Adoption profile'!$F$10,Sets!$B$8:$B$12,))*('Adoption profile'!$B33-'Adoption profile'!$E$10))) -> 0.01007227758 | F33: =$D$11/(1+EXP(-INDEX(Sets!$C$8:$C$12,MATCH('Adoption profile'!$F$11,Sets!$B$8:$B$12,))*('Adoption profile'!$B33-'Adoption profile'!$E$11))) -> 0.03717050821 | I33: 2025 | J33: =$K$8/(1+EXP(-INDEX(Sets!$C$8:$C$12,MATCH('Adoption profile'!$M$8,Sets!$B$8:$B$12,))*('Adoption profile'!$B33-'Adoption profile'!$L$8))) -> 0.008993104981 | K33: =$K$9/(1+EXP(-INDEX(Sets!$C$8:$C$12,MATCH('Adoption profile'!$M$9,Sets!$B$8:$B$12,))*('Adoption profile'!$B33-'Adoption profile'!$L$9))) -> 0.001557752589 | L33: =$K$10/(1+EXP(-INDEX(Sets!$C$8:$C$12,MATCH('Adoption profile'!$M$10,Sets!$B$8:$B$12,))*('Adoption profile'!$B33-'Adoption profile'!$L$10))) -> 0.006152687873 | M33: =$K$11/(1+EXP(-INDEX(Sets!$C$8:$C$12,MATCH('Adoption profile'!$M$11,Sets!$B$8:$B$12,))*('Adoption profile'!$B33-'Adoption profile'!$L$11))) -> 0.03717050821
B34: =B33+1 -> 2026 | C34: =$D$8/(1+EXP(-INDEX(Sets!$C$8:$C$12,MATCH('Adoption profile'!$F$8,Sets!$B$8:$B$12,))*('Adoption profile'!$B34-'Adoption profile'!$E$8))) -> 0.45 | D34: =$D$9/(1+EXP(-INDEX(Sets!$C$8:$C$12,MATCH('Adoption profile'!$F$9,Sets!$B$8:$B$12,))*('Adoption profile'!$B34-'Adoption profile'!$E$9))) -> 0.01846670537 | E34: =$D$10/(1+EXP(-INDEX(Sets!$C$8:$C$12,MATCH('Adoption profile'!$F$10,Sets!$B$8:$B$12,))*('Adoption profile'!$B34-'Adoption profile'!$E$10))) -> 0.01641484922 | F34: =$D$11/(1+EXP(-INDEX(Sets!$C$8:$C$12,MATCH('Adoption profile'!$F$11,Sets!$B$8:$B$12,))*('Adoption profile'!$B34-'Adoption profile'!$E$11))) -> 0.05840943179 | I34: =I33+1 -> 2026 | J34: =$K$8/(1+EXP(-INDEX(Sets!$C$8:$C$12,MATCH('Adoption profile'!$M$8,Sets!$B$8:$B$12,))*('Adoption profile'!$B34-'Adoption profile'!$L$8))) -> 0.01465611538 | K34: =$K$9/(1+EXP(-INDEX(Sets!$C$8:$C$12,MATCH('Adoption profile'!$M$9,Sets!$B$8:$B$12,))*('Adoption profile'!$B34-'Adoption profile'!$L$9))) -> 0.003288679187 | L34: =$K$10/(1+EXP(-INDEX(Sets!$C$8:$C$12,MATCH('Adoption profile'!$M$10,Sets!$B$8:$B$12,))*('Adoption profile'!$B34-'Adoption profile'!$L$10))) -> 0.01286732715 | M34: =$K$11/(1+EXP(-INDEX(Sets!$C$8:$C$12,MATCH('Adoption profile'!$M$11,Sets!$B$8:$B$12,))*('Adoption profile'!$B34-'Adoption profile'!$L$11))) -> 0.05840943179
B35: =B34+1 -> 2027 | C35: =$D$8/(1+EXP(-INDEX(Sets!$C$8:$C$12,MATCH('Adoption profile'!$F$8,Sets!$B$8:$B$12,))*('Adoption profile'!$B35-'Adoption profile'!$E$8))) -> 0.6112608293 | D35: =$D$9/(1+EXP(-INDEX(Sets!$C$8:$C$12,MATCH('Adoption profile'!$F$9,Sets!$B$8:$B$12,))*('Adoption profile'!$B35-'Adoption profile'!$E$9))) -> 0.0298783001 | E35: =$D$10/(1+EXP(-INDEX(Sets!$C$8:$C$12,MATCH('Adoption profile'!$F$10,Sets!$B$8:$B$12,))*('Adoption profile'!$B35-'Adoption profile'!$E$10))) -> 0.02655848898 | F35: =$D$11/(1+EXP(-INDEX(Sets!$C$8:$C$12,MATCH('Adoption profile'!$F$11,Sets!$B$8:$B$12,))*('Adoption profile'!$B35-'Adoption profile'!$E$11))) -> 0.08938850667 | I35: =I34+1 -> 2027 | J35: =$K$8/(1+EXP(-INDEX(Sets!$C$8:$C$12,MATCH('Adoption profile'!$M$8,Sets!$B$8:$B$12,))*('Adoption profile'!$B35-'Adoption profile'!$L$8))) -> 0.02371293659 | K35: =$K$9/(1+EXP(-INDEX(Sets!$C$8:$C$12,MATCH('Adoption profile'!$M$9,Sets!$B$8:$B$12,))*('Adoption profile'!$B35-'Adoption profile'!$L$9))) -> 0.006921773857 | L35: =$K$10/(1+EXP(-INDEX(Sets!$C$8:$C$12,MATCH('Adoption profile'!$M$10,Sets!$B$8:$B$12,))*('Adoption profile'!$B35-'Adoption profile'!$L$10))) -> 0.02655848898 | M35: =$K$11/(1+EXP(-INDEX(Sets!$C$8:$C$12,MATCH('Adoption profile'!$M$11,Sets!$B$8:$B$12,))*('Adoption profile'!$B35-'Adoption profile'!$L$11))) -> 0.08938850667
B36: 2028 | C36: =$D$8/(1+EXP(-INDEX(Sets!$C$8:$C$12,MATCH('Adoption profile'!$F$8,Sets!$B$8:$B$12,))*('Adoption profile'!$B36-'Adoption profile'!$E$8))) -> 0.7358170286 | D36: =$D$9/(1+EXP(-INDEX(Sets!$C$8:$C$12,MATCH('Adoption profile'!$F$9,Sets!$B$8:$B$12,))*('Adoption profile'!$B36-'Adoption profile'!$E$9))) -> 0.04779065341 | E36: =$D$10/(1+EXP(-INDEX(Sets!$C$8:$C$12,MATCH('Adoption profile'!$F$10,Sets!$B$8:$B$12,))*('Adoption profile'!$B36-'Adoption profile'!$E$10))) -> 0.04248058081 | F36: =$D$11/(1+EXP(-INDEX(Sets!$C$8:$C$12,MATCH('Adoption profile'!$F$11,Sets!$B$8:$B$12,))*('Adoption profile'!$B36-'Adoption profile'!$E$11))) -> 0.1317812965 | I36: 2028 | J36: =$K$8/(1+EXP(-INDEX(Sets!$C$8:$C$12,MATCH('Adoption profile'!$M$8,Sets!$B$8:$B$12,))*('Adoption profile'!$B36-'Adoption profile'!$L$8))) -> 0.03792909001 | K36: =$K$9/(1+EXP(-INDEX(Sets!$C$8:$C$12,MATCH('Adoption profile'!$M$9,Sets!$B$8:$B$12,))*('Adoption profile'!$B36-'Adoption profile'!$L$9))) -> 0.01447574304 | L36: =$K$10/(1+EXP(-INDEX(Sets!$C$8:$C$12,MATCH('Adoption profile'!$M$10,Sets!$B$8:$B$12,))*('Adoption profile'!$B36-'Adoption profile'!$L$10))) -> 0.05339570034 | M36: =$K$11/(1+EXP(-INDEX(Sets!$C$8:$C$12,MATCH('Adoption profile'!$M$11,Sets!$B$8:$B$12,))*('Adoption profile'!$B36-'Adoption profile'!$L$11))) -> 0.1317812965
B37: 2029 | C37: =$D$8/(1+EXP(-INDEX(Sets!$C$8:$C$12,MATCH('Adoption profile'!$F$8,Sets!$B$8:$B$12,))*('Adoption profile'!$B37-'Adoption profile'!$E$8))) -> 0.8141854816 | D37: =$D$9/(1+EXP(-INDEX(Sets!$C$8:$C$12,MATCH('Adoption profile'!$F$9,Sets!$B$8:$B$12,))*('Adoption profile'!$B37-'Adoption profile'!$E$9))) -> 0.07509784087 | E37: =$D$10/(1+EXP(-INDEX(Sets!$C$8:$C$12,MATCH('Adoption profile'!$F$10,Sets!$B$8:$B$12,))*('Adoption profile'!$B37-'Adoption profile'!$E$10))) -> 0.06675363633 | F37: =$D$11/(1+EXP(-INDEX(Sets!$C$8:$C$12,MATCH('Adoption profile'!$F$11,Sets!$B$8:$B$12,))*('Adoption profile'!$B37-'Adoption profile'!$E$11))) -> 0.1849949277 | I37: 2029 | J37: =$K$8/(1+EXP(-INDEX(Sets!$C$8:$C$12,MATCH('Adoption profile'!$M$8,Sets!$B$8:$B$12,))*('Adoption profile'!$B37-'Adoption profile'!$L$8))) -> 0.05960146101 | K37: =$K$9/(1+EXP(-INDEX(Sets!$C$8:$C$12,MATCH('Adoption profile'!$M$9,Sets!$B$8:$B$12,))*('Adoption profile'!$B37-'Adoption profile'!$L$9))) -> 0.0298783001 | L37: =$K$10/(1+EXP(-INDEX(Sets!$C$8:$C$12,MATCH('Adoption profile'!$M$10,Sets!$B$8:$B$12,))*('Adoption profile'!$B37-'Adoption profile'!$L$10))) -> 0.1021582933 | M37: =$K$11/(1+EXP(-INDEX(Sets!$C$8:$C$12,MATCH('Adoption profile'!$M$11,Sets!$B$8:$B$12,))*('Adoption profile'!$B37-'Adoption profile'!$L$11))) -> 0.1849949277
B38: 2030 | C38: =$D$8/(1+EXP(-INDEX(Sets!$C$8:$C$12,MATCH('Adoption profile'!$F$8,Sets!$B$8:$B$12,))*('Adoption profile'!$B38-'Adoption profile'!$E$8))) -> 0.8573167141 | D38: =$D$9/(1+EXP(-INDEX(Sets!$C$8:$C$12,MATCH('Adoption profile'!$F$9,Sets!$B$8:$B$12,))*('Adoption profile'!$B38-'Adoption profile'!$E$9))) -> 0.11492808 | E38: =$D$10/(1+EXP(-INDEX(Sets!$C$8:$C$12,MATCH('Adoption profile'!$F$10,Sets!$B$8:$B$12,))*('Adoption profile'!$B38-'Adoption profile'!$E$10))) -> 0.1021582933 | F38: =$D$11/(1+EXP(-INDEX(Sets!$C$8:$C$12,MATCH('Adoption profile'!$F$11,Sets!$B$8:$B$12,))*('Adoption profile'!$B38-'Adoption profile'!$E$11))) -> 0.245 | I38: 2030 | J38: =$K$8/(1+EXP(-INDEX(Sets!$C$8:$C$12,MATCH('Adoption profile'!$M$8,Sets!$B$8:$B$12,))*('Adoption profile'!$B38-'Adoption profile'!$L$8))) -> 0.0912127619 | K38: =$K$9/(1+EXP(-INDEX(Sets!$C$8:$C$12,MATCH('Adoption profile'!$M$9,Sets!$B$8:$B$12,))*('Adoption profile'!$B38-'Adoption profile'!$L$9))) -> 0.06007016289 | L38: =$K$10/(1+EXP(-INDEX(Sets!$C$8:$C$12,MATCH('Adoption profile'!$M$10,Sets!$B$8:$B$12,))*('Adoption profile'!$B38-'Adoption profile'!$L$10))) -> 0.1796599285 | M38: =$K$11/(1+EXP(-INDEX(Sets!$C$8:$C$12,MATCH('Adoption profile'!$M$11,Sets!$B$8:$B$12,))*('Adoption profile'!$B38-'Adoption profile'!$L$11))) -> 0.245
B39: 2031 | C39: =$D$8/(1+EXP(-INDEX(Sets!$C$8:$C$12,MATCH('Adoption profile'!$F$8,Sets!$B$8:$B$12,))*('Adoption profile'!$B39-'Adoption profile'!$E$8))) -> 0.8793203671 | D39: =$D$9/(1+EXP(-INDEX(Sets!$C$8:$C$12,MATCH('Adoption profile'!$F$9,Sets!$B$8:$B$12,))*('Adoption profile'!$B39-'Adoption profile'!$E$9))) -> 0.1694330955 | E39: =$D$10/(1+EXP(-INDEX(Sets!$C$8:$C$12,MATCH('Adoption profile'!$F$10,Sets!$B$8:$B$12,))*('Adoption profile'!$B39-'Adoption profile'!$E$10))) -> 0.150607196 | F39: =$D$11/(1+EXP(-INDEX(Sets!$C$8:$C$12,MATCH('Adoption profile'!$F$11,Sets!$B$8:$B$12,))*('Adoption profile'!$B39-'Adoption profile'!$E$11))) -> 0.3050050723 | I39: 2031 | J39: =$K$8/(1+EXP(-INDEX(Sets!$C$8:$C$12,MATCH('Adoption profile'!$M$8,Sets!$B$8:$B$12,))*('Adoption profile'!$B39-'Adoption profile'!$L$8))) -> 0.1344707107 | K39: =$K$9/(1+EXP(-INDEX(Sets!$C$8:$C$12,MATCH('Adoption profile'!$M$9,Sets!$B$8:$B$12,))*('Adoption profile'!$B39-'Adoption profile'!$L$9))) -> 0.11492808 | L39: =$K$10/(1+EXP(-INDEX(Sets!$C$8:$C$12,MATCH('Adoption profile'!$M$10,Sets!$B$8:$B$12,))*('Adoption profile'!$B39-'Adoption profile'!$L$10))) -> 0.28 | M39: =$K$11/(1+EXP(-INDEX(Sets!$C$8:$C$12,MATCH('Adoption profile'!$M$11,Sets!$B$8:$B$12,))*('Adoption profile'!$B39-'Adoption profile'!$L$11))) -> 0.3050050723
B40: 2032 | C40: =$D$8/(1+EXP(-INDEX(Sets!$C$8:$C$12,MATCH('Adoption profile'!$F$8,Sets!$B$8:$B$12,))*('Adoption profile'!$B40-'Adoption profile'!$E$8))) -> 0.8901117516 | D40: =$D$9/(1+EXP(-INDEX(Sets!$C$8:$C$12,MATCH('Adoption profile'!$F$9,Sets!$B$8:$B$12,))*('Adoption profile'!$B40-'Adoption profile'!$E$9))) -> 0.2378506213 | E40: =$D$10/(1+EXP(-INDEX(Sets!$C$8:$C$12,MATCH('Adoption profile'!$F$10,Sets!$B$8:$B$12,))*('Adoption profile'!$B40-'Adoption profile'!$E$10))) -> 0.2114227745 | F40: =$D$11/(1+EXP(-INDEX(Sets!$C$8:$C$12,MATCH('Adoption profile'!$F$11,Sets!$B$8:$B$12,))*('Adoption profile'!$B40-'Adoption profile'!$E$11))) -> 0.3582187035 | I40: 2032 | J40: =$K$8/(1+EXP(-INDEX(Sets!$C$8:$C$12,MATCH('Adoption profile'!$M$8,Sets!$B$8:$B$12,))*('Adoption profile'!$B40-'Adoption profile'!$L$8))) -> 0.1887703344 | K40: =$K$9/(1+EXP(-INDEX(Sets!$C$8:$C$12,MATCH('Adoption profile'!$M$9,Sets!$B$8:$B$12,))*('Adoption profile'!$B40-'Adoption profile'!$L$9))) -> 0.2021174195 | L40: =$K$10/(1+EXP(-INDEX(Sets!$C$8:$C$12,MATCH('Adoption profile'!$M$10,Sets!$B$8:$B$12,))*('Adoption profile'!$B40-'Adoption profile'!$L$10))) -> 0.3803400715 | M40: =$K$11/(1+EXP(-INDEX(Sets!$C$8:$C$12,MATCH('Adoption profile'!$M$11,Sets!$B$8:$B$12,))*('Adoption profile'!$B40-'Adoption profile'!$L$11))) -> 0.3582187035
B41: 2033 | C41: =$D$8/(1+EXP(-INDEX(Sets!$C$8:$C$12,MATCH('Adoption profile'!$F$8,Sets!$B$8:$B$12,))*('Adoption profile'!$B41-'Adoption profile'!$E$8))) -> 0.8953018869 | D41: =$D$9/(1+EXP(-INDEX(Sets!$C$8:$C$12,MATCH('Adoption profile'!$F$9,Sets!$B$8:$B$12,))*('Adoption profile'!$B41-'Adoption profile'!$E$9))) -> 0.315 | E41: =$D$10/(1+EXP(-INDEX(Sets!$C$8:$C$12,MATCH('Adoption profile'!$F$10,Sets!$B$8:$B$12,))*('Adoption profile'!$B41-'Adoption profile'!$E$10))) -> 0.28 | F41: =$D$11/(1+EXP(-INDEX(Sets!$C$8:$C$12,MATCH('Adoption profile'!$F$11,Sets!$B$8:$B$12,))*('Adoption profile'!$B41-'Adoption profile'!$E$11))) -> 0.4006114933 | I41: 2033 | J41: =$K$8/(1+EXP(-INDEX(Sets!$C$8:$C$12,MATCH('Adoption profile'!$M$8,Sets!$B$8:$B$12,))*('Adoption profile'!$B41-'Adoption profile'!$L$8))) -> 0.25 | K41: =$K$9/(1+EXP(-INDEX(Sets!$C$8:$C$12,MATCH('Adoption profile'!$M$9,Sets!$B$8:$B$12,))*('Adoption profile'!$B41-'Adoption profile'!$L$9))) -> 0.315 | L41: =$K$10/(1+EXP(-INDEX(Sets!$C$8:$C$12,MATCH('Adoption profile'!$M$10,Sets!$B$8:$B$12,))*('Adoption profile'!$B41-'Adoption profile'!$L$10))) -> 0.4578417067 | M41: =$K$11/(1+EXP(-INDEX(Sets!$C$8:$C$12,MATCH('Adoption profile'!$M$11,Sets!$B$8:$B$12,))*('Adoption profile'!$B41-'Adoption profile'!$L$11))) -> 0.4006114933
B42: 2034 | C42: =$D$8/(1+EXP(-INDEX(Sets!$C$8:$C$12,MATCH('Adoption profile'!$F$8,Sets!$B$8:$B$12,))*('Adoption profile'!$B42-'Adoption profile'!$E$8))) -> 0.8977746392 | D42: =$D$9/(1+EXP(-INDEX(Sets!$C$8:$C$12,MATCH('Adoption profile'!$F$9,Sets!$B$8:$B$12,))*('Adoption profile'!$B42-'Adoption profile'!$E$9))) -> 0.3921493787 | E42: =$D$10/(1+EXP(-INDEX(Sets!$C$8:$C$12,MATCH('Adoption profile'!$F$10,Sets!$B$8:$B$12,))*('Adoption profile'!$B42-'Adoption profile'!$E$10))) -> 0.3485772255 | F42: =$D$11/(1+EXP(-INDEX(Sets!$C$8:$C$12,MATCH('Adoption profile'!$F$11,Sets!$B$8:$B$12,))*('Adoption profile'!$B42-'Adoption profile'!$E$11))) -> 0.4315905682 | I42: 2034 | J42: =$K$8/(1+EXP(-INDEX(Sets!$C$8:$C$12,MATCH('Adoption profile'!$M$8,Sets!$B$8:$B$12,))*('Adoption profile'!$B42-'Adoption profile'!$L$8))) -> 0.3112296656 | K42: =$K$9/(1+EXP(-INDEX(Sets!$C$8:$C$12,MATCH('Adoption profile'!$M$9,Sets!$B$8:$B$12,))*('Adoption profile'!$B42-'Adoption profile'!$L$9))) -> 0.4278825805 | L42: =$K$10/(1+EXP(-INDEX(Sets!$C$8:$C$12,MATCH('Adoption profile'!$M$10,Sets!$B$8:$B$12,))*('Adoption profile'!$B42-'Adoption profile'!$L$10))) -> 0.5066042997 | M42: =$K$11/(1+EXP(-INDEX(Sets!$C$8:$C$12,MATCH('Adoption profile'!$M$11,Sets!$B$8:$B$12,))*('Adoption profile'!$B42-'Adoption profile'!$L$11))) -> 0.4315905682
B43: 2035 | C43: =$D$8/(1+EXP(-INDEX(Sets!$C$8:$C$12,MATCH('Adoption profile'!$F$8,Sets!$B$8:$B$12,))*('Adoption profile'!$B43-'Adoption profile'!$E$8))) -> 0.8989474408 | D43: =$D$9/(1+EXP(-INDEX(Sets!$C$8:$C$12,MATCH('Adoption profile'!$F$9,Sets!$B$8:$B$12,))*('Adoption profile'!$B43-'Adoption profile'!$E$9))) -> 0.4605669045 | E43: =$D$10/(1+EXP(-INDEX(Sets!$C$8:$C$12,MATCH('Adoption profile'!$F$10,Sets!$B$8:$B$12,))*('Adoption profile'!$B43-'Adoption profile'!$E$10))) -> 0.409392804 | F43: =$D$11/(1+EXP(-INDEX(Sets!$C$8:$C$12,MATCH('Adoption profile'!$F$11,Sets!$B$8:$B$12,))*('Adoption profile'!$B43-'Adoption profile'!$E$11))) -> 0.4528294918 | I43: 2035 | J43: =$K$8/(1+EXP(-INDEX(Sets!$C$8:$C$12,MATCH('Adoption profile'!$M$8,Sets!$B$8:$B$12,))*('Adoption profile'!$B43-'Adoption profile'!$L$8))) -> 0.3655292893 | K43: =$K$9/(1+EXP(-INDEX(Sets!$C$8:$C$12,MATCH('Adoption profile'!$M$9,Sets!$B$8:$B$12,))*('Adoption profile'!$B43-'Adoption profile'!$L$9))) -> 0.51507192 | L43: =$K$10/(1+EXP(-INDEX(Sets!$C$8:$C$12,MATCH('Adoption profile'!$M$10,Sets!$B$8:$B$12,))*('Adoption profile'!$B43-'Adoption profile'!$L$10))) -> 0.533441511 | M43: =$K$11/(1+EXP(-INDEX(Sets!$C$8:$C$12,MATCH('Adoption profile'!$M$11,Sets!$B$8:$B$12,))*('Adoption profile'!$B43-'Adoption profile'!$L$11))) -> 0.4528294918
B44: 2036 | C44: =$D$8/(1+EXP(-INDEX(Sets!$C$8:$C$12,MATCH('Adoption profile'!$F$8,Sets!$B$8:$B$12,))*('Adoption profile'!$B44-'Adoption profile'!$E$8))) -> 0.8995024992 | D44: =$D$9/(1+EXP(-INDEX(Sets!$C$8:$C$12,MATCH('Adoption profile'!$F$9,Sets!$B$8:$B$12,))*('Adoption profile'!$B44-'Adoption profile'!$E$9))) -> 0.51507192 | E44: =$D$10/(1+EXP(-INDEX(Sets!$C$8:$C$12,MATCH('Adoption profile'!$F$10,Sets!$B$8:$B$12,))*('Adoption profile'!$B44-'Adoption profile'!$E$10))) -> 0.4578417067 | F44: =$D$11/(1+EXP(-INDEX(Sets!$C$8:$C$12,MATCH('Adoption profile'!$F$11,Sets!$B$8:$B$12,))*('Adoption profile'!$B44-'Adoption profile'!$E$11))) -> 0.4667613221 | I44: 2036 | J44: =$K$8/(1+EXP(-INDEX(Sets!$C$8:$C$12,MATCH('Adoption profile'!$M$8,Sets!$B$8:$B$12,))*('Adoption profile'!$B44-'Adoption profile'!$L$8))) -> 0.4087872381 | K44: =$K$9/(1+EXP(-INDEX(Sets!$C$8:$C$12,MATCH('Adoption profile'!$M$9,Sets!$B$8:$B$12,))*('Adoption profile'!$B44-'Adoption profile'!$L$9))) -> 0.5699298371 | L44: =$K$10/(1+EXP(-INDEX(Sets!$C$8:$C$12,MATCH('Adoption profile'!$M$10,Sets!$B$8:$B$12,))*('Adoption profile'!$B44-'Adoption profile'!$L$10))) -> 0.5471326729 | M44: =$K$11/(1+EXP(-INDEX(Sets!$C$8:$C$12,MATCH('Adoption profile'!$M$11,Sets!$B$8:$B$12,))*('Adoption profile'!$B44-'Adoption profile'!$L$11))) -> 0.4667613221
B45: 2037 | C45: =$D$8/(1+EXP(-INDEX(Sets!$C$8:$C$12,MATCH('Adoption profile'!$F$8,Sets!$B$8:$B$12,))*('Adoption profile'!$B45-'Adoption profile'!$E$8))) -> 0.8997649287 | D45: =$D$9/(1+EXP(-INDEX(Sets!$C$8:$C$12,MATCH('Adoption profile'!$F$9,Sets!$B$8:$B$12,))*('Adoption profile'!$B45-'Adoption profile'!$E$9))) -> 0.5549021591 | E45: =$D$10/(1+EXP(-INDEX(Sets!$C$8:$C$12,MATCH('Adoption profile'!$F$10,Sets!$B$8:$B$12,))*('Adoption profile'!$B45-'Adoption profile'!$E$10))) -> 0.4932463637 | F45: =$D$11/(1+EXP(-INDEX(Sets!$C$8:$C$12,MATCH('Adoption profile'!$F$11,Sets!$B$8:$B$12,))*('Adoption profile'!$B45-'Adoption profile'!$E$11))) -> 0.4756370069 | I45: 2037 | J45: =$K$8/(1+EXP(-INDEX(Sets!$C$8:$C$12,MATCH('Adoption profile'!$M$8,Sets!$B$8:$B$12,))*('Adoption profile'!$B45-'Adoption profile'!$L$8))) -> 0.440398539 | K45: =$K$9/(1+EXP(-INDEX(Sets!$C$8:$C$12,MATCH('Adoption profile'!$M$9,Sets!$B$8:$B$12,))*('Adoption profile'!$B45-'Adoption profile'!$L$9))) -> 0.6001216999 | L45: =$K$10/(1+EXP(-INDEX(Sets!$C$8:$C$12,MATCH('Adoption profile'!$M$10,Sets!$B$8:$B$12,))*('Adoption profile'!$B45-'Adoption profile'!$L$10))) -> 0.5538473121 | M45: =$K$11/(1+EXP(-INDEX(Sets!$C$8:$C$12,MATCH('Adoption profile'!$M$11,Sets!$B$8:$B$12,))*('Adoption profile'!$B45-'Adoption profile'!$L$11))) -> 0.4756370069
B46: 2038 | C46: =$D$8/(1+EXP(-INDEX(Sets!$C$8:$C$12,MATCH('Adoption profile'!$F$8,Sets!$B$8:$B$12,))*('Adoption profile'!$B46-'Adoption profile'!$E$8))) -> 0.8998889449 | D46: =$D$9/(1+EXP(-INDEX(Sets!$C$8:$C$12,MATCH('Adoption profile'!$F$9,Sets!$B$8:$B$12,))*('Adoption profile'!$B46-'Adoption profile'!$E$9))) -> 0.5822093466 | E46: =$D$10/(1+EXP(-INDEX(Sets!$C$8:$C$12,MATCH('Adoption profile'!$F$10,Sets!$B$8:$B$12,))*('Adoption profile'!$B46-'Adoption profile'!$E$10))) -> 0.5175194192 | F46: =$D$11/(1+EXP(-INDEX(Sets!$C$8:$C$12,MATCH('Adoption profile'!$F$11,Sets!$B$8:$B$12,))*('Adoption profile'!$B46-'Adoption profile'!$E$11))) -> 0.4811867571 | I46: 2038 | J46: =$K$8/(1+EXP(-INDEX(Sets!$C$8:$C$12,MATCH('Adoption profile'!$M$8,Sets!$B$8:$B$12,))*('Adoption profile'!$B46-'Adoption profile'!$L$8))) -> 0.46207091 | K46: =$K$9/(1+EXP(-INDEX(Sets!$C$8:$C$12,MATCH('Adoption profile'!$M$9,Sets!$B$8:$B$12,))*('Adoption profile'!$B46-'Adoption profile'!$L$9))) -> 0.615524257 | L46: =$K$10/(1+EXP(-INDEX(Sets!$C$8:$C$12,MATCH('Adoption profile'!$M$10,Sets!$B$8:$B$12,))*('Adoption profile'!$B46-'Adoption profile'!$L$10))) -> 0.5570767296 | M46: =$K$11/(1+EXP(-INDEX(Sets!$C$8:$C$12,MATCH('Adoption profile'!$M$11,Sets!$B$8:$B$12,))*('Adoption profile'!$B46-'Adoption profile'!$L$11))) -> 0.4811867571
B47: 2039 | C47: =$D$8/(1+EXP(-INDEX(Sets!$C$8:$C$12,MATCH('Adoption profile'!$F$8,Sets!$B$8:$B$12,))*('Adoption profile'!$B47-'Adoption profile'!$E$8))) -> 0.8999475379 | D47: =$D$9/(1+EXP(-INDEX(Sets!$C$8:$C$12,MATCH('Adoption profile'!$F$9,Sets!$B$8:$B$12,))*('Adoption profile'!$B47-'Adoption profile'!$E$9))) -> 0.6001216999 | E47: =$D$10/(1+EXP(-INDEX(Sets!$C$8:$C$12,MATCH('Adoption profile'!$F$10,Sets!$B$8:$B$12,))*('Adoption profile'!$B47-'Adoption profile'!$E$10))) -> 0.533441511 | F47: =$D$11/(1+EXP(-INDEX(Sets!$C$8:$C$12,MATCH('Adoption profile'!$F$11,Sets!$B$8:$B$12,))*('Adoption profile'!$B47-'Adoption profile'!$E$11))) -> 0.4846163981 | I47: 2039 | J47: =$K$8/(1+EXP(-INDEX(Sets!$C$8:$C$12,MATCH('Adoption profile'!$M$8,Sets!$B$8:$B$12,))*('Adoption profile'!$B47-'Adoption profile'!$L$8))) -> 0.4762870634 | K47: =$K$9/(1+EXP(-INDEX(Sets!$C$8:$C$12,MATCH('Adoption profile'!$M$9,Sets!$B$8:$B$12,))*('Adoption profile'!$B47-'Adoption profile'!$L$9))) -> 0.6230782261 | L47: =$K$10/(1+EXP(-INDEX(Sets!$C$8:$C$12,MATCH('Adoption profile'!$M$10,Sets!$B$8:$B$12,))*('Adoption profile'!$B47-'Adoption profile'!$L$10))) -> 0.558615331 | M47: =$K$11/(1+EXP(-INDEX(Sets!$C$8:$C$12,MATCH('Adoption profile'!$M$11,Sets!$B$8:$B$12,))*('Adoption profile'!$B47-'Adoption profile'!$L$11))) -> 0.4846163981
B48: =B47+1 -> 2040 | C48: =$D$8/(1+EXP(-INDEX(Sets!$C$8:$C$12,MATCH('Adoption profile'!$F$8,Sets!$B$8:$B$12,))*('Adoption profile'!$B48-'Adoption profile'!$E$8))) -> 0.8999752179 | D48: =$D$9/(1+EXP(-INDEX(Sets!$C$8:$C$12,MATCH('Adoption profile'!$F$9,Sets!$B$8:$B$12,))*('Adoption profile'!$B48-'Adoption profile'!$E$9))) -> 0.6115332946 | E48: =$D$10/(1+EXP(-INDEX(Sets!$C$8:$C$12,MATCH('Adoption profile'!$F$10,Sets!$B$8:$B$12,))*('Adoption profile'!$B48-'Adoption profile'!$E$10))) -> 0.5435851508 | F48: =$D$11/(1+EXP(-INDEX(Sets!$C$8:$C$12,MATCH('Adoption profile'!$F$11,Sets!$B$8:$B$12,))*('Adoption profile'!$B48-'Adoption profile'!$E$11))) -> 0.486720503 | I48: =I47+1 -> 2040 | J48: =$K$8/(1+EXP(-INDEX(Sets!$C$8:$C$12,MATCH('Adoption profile'!$M$8,Sets!$B$8:$B$12,))*('Adoption profile'!$B48-'Adoption profile'!$L$8))) -> 0.4853438846 | K48: =$K$9/(1+EXP(-INDEX(Sets!$C$8:$C$12,MATCH('Adoption profile'!$M$9,Sets!$B$8:$B$12,))*('Adoption profile'!$B48-'Adoption profile'!$L$9))) -> 0.6267113208 | L48: =$K$10/(1+EXP(-INDEX(Sets!$C$8:$C$12,MATCH('Adoption profile'!$M$10,Sets!$B$8:$B$12,))*('Adoption profile'!$B48-'Adoption profile'!$L$10))) -> 0.5593450743 | M48: =$K$11/(1+EXP(-INDEX(Sets!$C$8:$C$12,MATCH('Adoption profile'!$M$11,Sets!$B$8:$B$12,))*('Adoption profile'!$B48-'Adoption profile'!$L$11))) -> 0.486720503
C51: Implied productivity improvement | J51: Implied productivity improvement
C52: =C32 -> Production cost analysis | D52: =D32 -> Automated farm data collection | E52: =E32 -> ML and AI | F52: =F32 -> Mechanisation and automation | G52: Total | J52: =J32 -> Production cost analysis | K52: =K32 -> Automated farm data collection | L52: =L32 -> ML and AI | M52: =M32 -> Mechanisation and automation | N52: Total
B53: 2025 | C53: =C33*$C$8 -> 0.02887391707 | D53: =D33*$C$9 -> 0.001359757473 | E53: =E33*$C$10 -> 0.0007050594305 | F53: =F33*$C$11 -> 0.002973640657 | G53: =SUM(C53:F53) -> 0.03391237463 | I53: 2025 | J53: =J33*$J$8 -> 0.001079172598 | K53: =K33*$J$9 -> 0.0001869303106 | L53: =L33*$J$10 -> 0.0001230537575 | M53: =M33*$J$11 -> 0.001858525411 | N53: =SUM(J53:M53) -> 0.003247682076
B54: =B53+1 -> 2026 | C54: 0.045 | D54: 0.002216004645 | E54: 0.001149039445 | F54: 0.004672754543 | G54: =SUM(C54:F54) -> 0.05303779863 | I54: =I53+1 -> 2026 | J54: 0.001758733845 | K54: 0.0003946415024 | L54: 0.000257346543 | M54: 0.00292047159 | N54: =SUM(J54:M54) -> 0.00533119348
B55: =B54+1 -> 2027 | C55: 0.06112608293 | D55: 0.003585396012 | E55: 0.001859094229 | F55: 0.007151080533 | G55: 0.0737216537 | I55: =I54+1 -> 2027 | J55: 0.002845552391 | K55: 0.0008306128629 | L55: 0.0005311697796 | M55: 0.004469425333 | N55: 0.008676760366
B56: 2028 | C56: 0.07358170286 | D56: 0.00573487841 | E56: 0.002973640657 | F56: 0.01054250372 | G56: 0.09283272564 | I56: 2028 | J56: 0.004551490801 | K56: 0.001737089165 | L56: 0.001067914007 | M56: 0.006589064824 | N56: 0.0139455588
B57: 2029 | C57: 0.08141854816 | D57: 0.009011740905 | E57: 0.004672754543 | F57: 0.01479959422 | G57: 0.1099026378 | I57: 2029 | J57: 0.007152175321 | K57: 0.003585396012 | L57: 0.002043165867 | M57: 0.009249746386 | N57: 0.02203048359
B58: 2030 | C58: 0.08573167141 | D58: 0.0137913696 | E58: 0.007151080533 | F58: 0.0196 | G58: 0.1262741215 | I58: 2030 | J58: 0.01094553143 | K58: 0.007208419546 | L58: 0.003593198569 | M58: 0.01225 | N58: 0.03399714954
B59: 2031 | C59: 0.08793203671 | D59: 0.02033197146 | E59: 0.01054250372 | F59: 0.02440040578 | G59: 0.1432069177 | I59: 2031 | J59: 0.01613648528 | K59: 0.0137913696 | L59: 0.0056 | M59: 0.01525025361 | N59: 0.0507781085
B60: 2032 | C60: 0.08901117516 | D60: 0.02854207456 | E60: 0.01479959422 | F60: 0.02865749628 | G60: 0.1610103402 | I60: 2032 | J60: 0.02265244013 | K60: 0.02425409034 | L60: 0.007606801431 | M60: 0.01791093518 | N60: 0.07242426708
B61: 2033 | C61: 0.08953018869 | D61: 0.0378 | E61: 0.0196 | F61: 0.03204891947 | G61: 0.1789791082 | I61: 2033 | J61: 0.03 | K61: 0.0378 | L61: 0.009156834133 | M61: 0.02003057467 | N61: 0.0969874088
B62: 2034 | C62: 0.08977746392 | D62: 0.04705792544 | E62: 0.02440040578 | F62: 0.03452724546 | G62: 0.1957630406 | I62: 2034 | J62: 0.03734755987 | K62: 0.05134590966 | L62: 0.01013208599 | M62: 0.02157952841 | N62: 0.1204050839
B63: 2035 | C63: 0.08989474408 | D63: 0.05526802854 | E63: 0.02865749628 | F63: 0.03622635934 | G63: 0.2100466282 | I63: 2035 | J63: 0.04386351472 | K63: 0.0618086304 | L63: 0.01066883022 | M63: 0.02264147459 | N63: 0.1389824499
B64: 2036 | C64: 0.08995024992 | D64: 0.0618086304 | E64: 0.03204891947 | F64: 0.03734090577 | G64: 0.2211487056 | I64: 2036 | J64: 0.04905446857 | K64: 0.06839158045 | L64: 0.01094265346 | M64: 0.02333806611 | N64: 0.1517267686
B65: 2037 | C65: 0.08997649287 | D65: 0.0665882591 | E65: 0.03452724546 | F65: 0.03805096055 | G65: 0.229142958 | I65: 2037 | J65: 0.05284782468 | K65: 0.07201460399 | L65: 0.01107694624 | M65: 0.02378185035 | N65: 0.1597212253
B66: 2038 | C66: 0.08998889449 | D66: 0.06986512159 | E66: 0.03622635934 | F66: 0.03849494057 | G66: 0.234575316 | I66: 2038 | J66: 0.0554485092 | K66: 0.07386291083 | L66: 0.01114153459 | M66: 0.02405933786 | N66: 0.1645122925
B67: 2039 | C67: 0.08999475379 | D67: 0.07201460399 | E67: 0.03734090577 | F67: 0.03876931185 | G67: 0.2381195754 | I67: 2039 | J67: 0.05715444761 | K67: 0.07476938714 | L67: 0.01117230662 | M67: 0.02423081991 | N67: 0.1673269613
B68: =B67+1 -> 2040 | C68: 0.08999752179 | D68: 0.07338399536 | E68: 0.03805096055 | F68: 0.03893764024 | G68: 0.2403701179 | I68: =I67+1 -> 2040 | J68: 0.05824126615 | K68: 0.0752053585 | L68: 0.01118690149 | M68: 0.02433602515 | N68: 0.1689695513

Sheet Results
B2: Value added outcomes (in $m) | E2: (Do not alter these cells)
B3: ='Adoption profile'!$C$2 -> Apples | U3: Do not alter these cells
C4: 2025 | D4: =C4+1 -> 2026 | E4: =D4+1 -> 2027 | F4: 2028 | G4: 2029 | H4: 2030 | I4: 2031 | J4: 2032 | K4: 2033 | L4: 2034 | M4: 2035 | N4: 2036 | O4: 2037 | P4: 2038 | Q4: 2039 | R4: =Q4+1 -> 2040
B5: Baseline | C5: =INDEX('Value added baseline'!$D$11:$W$58,MATCH(Results!$B$3,'Value added baseline'!$C$11:$C$58,),MATCH(Results!C$4,'Value added baseline'!$D$10:$W$10,)) -> 502.6822674 | D5: =INDEX('Value added baseline'!$D$11:$W$58,MATCH(Results!$B$3,'Value added baseline'!$C$11:$C$58,),MATCH(Results!D$4,'Value added baseline'!$D$10:$W$10,)) -> 510.4502695 | E5: =INDEX('Value added baseline'!$D$11:$W$58,MATCH(Results!$B$3,'Value added baseline'!$C$11:$C$58,),MATCH(Results!E$4,'Value added baseline'!$D$10:$W$10,)) -> 518.5258955 | F5: =INDEX('Value added baseline'!$D$11:$W$58,MATCH(Results!$B$3,'Value added baseline'!$C$11:$C$58,),MATCH(Results!F$4,'Value added baseline'!$D$10:$W$10,)) -> 529.3071611 | G5: =INDEX('Value added baseline'!$D$11:$W$58,MATCH(Results!$B$3,'Value added baseline'!$C$11:$C$58,),MATCH(Results!G$4,'Value added baseline'!$D$10:$W$10,)) -> 540.5730488 | H5: =INDEX('Value added baseline'!$D$11:$W$58,MATCH(Results!$B$3,'Value added baseline'!$C$11:$C$58,),MATCH(Results!H$4,'Value added baseline'!$D$10:$W$10,)) -> 552.3876698 | I5: =INDEX('Value added baseline'!$D$11:$W$58,MATCH(Results!$B$3,'Value added baseline'!$C$11:$C$58,),MATCH(Results!I$4,'Value added baseline'!$D$10:$W$10,)) -> 564.1539199 | J5: =INDEX('Value added baseline'!$D$11:$W$58,MATCH(Results!$B$3,'Value added baseline'!$C$11:$C$58,),MATCH(Results!J$4,'Value added baseline'!$D$10:$W$10,)) -> 575.7950293 | K5: =INDEX('Value added baseline'!$D$11:$W$58,MATCH(Results!$B$3,'Value added baseline'!$C$11:$C$58,),MATCH(Results!K$4,'Value added baseline'!$D$10:$W$10,)) -> 587.3613494 | L5: =INDEX('Value added baseline'!$D$11:$W$58,MATCH(Results!$B$3,'Value added baseline'!$C$11:$C$58,),MATCH(Results!L$4,'Value added baseline'!$D$10:$W$10,)) -> 598.8545124 | M5: =INDEX('Value added baseline'!$D$11:$W$58,MATCH(Results!$B$3,'Value added baseline'!$C$11:$C$58,),MATCH(Results!M$4,'Value added baseline'!$D$10:$W$10,)) -> 610.2794425 | N5: =INDEX('Value added baseline'!$D$11:$W$58,MATCH(Results!$B$3,'Value added baseline'!$C$11:$C$58,),MATCH(Results!N$4,'Value added baseline'!$D$10:$W$10,)) -> 621.6437655 | O5: =INDEX('Value added baseline'!$D$11:$W$58,MATCH(Results!$B$3,'Value added baseline'!$C$11:$C$58,),MATCH(Results!O$4,'Value added baseline'!$D$10:$W$10,)) -> 632.9560916 | P5: =INDEX('Value added baseline'!$D$11:$W$58,MATCH(Results!$B$3,'Value added baseline'!$C$11:$C$58,),MATCH(Results!P$4,'Value added baseline'!$D$10:$W$10,)) -> 644.226677 | Q5: =INDEX('Value added baseline'!$D$11:$W$58,MATCH(Results!$B$3,'Value added baseline'!$C$11:$C$58,),MATCH(Results!Q$4,'Value added baseline'!$D$10:$W$10,)) -> 655.4658133 | R5: =INDEX('Value added baseline'!$D$11:$W$58,MATCH(Results!$B$3,'Value added baseline'!$C$11:$C$58,),MATCH(Results!R$4,'Value added baseline'!$D$10:$W$10,)) -> 666.6821325 | V5: =FLOOR(MIN(C5:R7),W6) -> 500
B6: Scenario 1 | C6: =C$5*(1+C12/100) -> 520.104585 | D6: =D$5*(1+D12/100) -> 537.8905603 | E6: 556.9810304 | F6: 578.4194925 | G6: 599.621863 | H6: 621.3492765 | I6: 643.5960051 | J6: 666.4390252 | K6: 689.5572576 | L6: 712.2117345 | M6: 733.6628644 | N6: 753.4976241 | O6: 771.7058735 | P6: 788.5427976 | Q6: 804.3483471 | R6: 819.4328495 | U6: =MIN(C5:R7) -> 502.6822674 | V6: =MAX(C5:R7) -> 819.4328495 | W6: =IF(U6<100,10,100) -> 100
B7: Scenario 2 | C7: =C$5*(1+C13/100) -> 504.4795919 | D7: 513.3626113 | E7: 523.2549065 | F7: 536.9736441 | G7: 552.8344186 | H7: 571.5797445 | I7: 593.2146589 | J7: 617.7647924 | K7: 644.2211821 | L7: 670.2773246 | M7: 693.7946112 | N7: 714.1368475 | O7: 731.8415384 | P7: 747.7334505 | Q7: 762.4839525 | R7: 776.5424731
A9: Productivity improvement % | B9: Scenario 1 | C9: =TRANSPOSE('Adoption profile'!$G$53:$G$68)*100 -> 3.391237463 | D9: 5.303779863 | E9: 7.37216537 | F9: 9.283272564 | G9: 10.99026378 | H9: 12.62741215 | I9: 14.32069177 | J9: 16.10103402 | K9: 17.89791082 | L9: 19.57630406 | M9: 21.00466282 | N9: 22.11487056 | O9: 22.9142958 | P9: 23.4575316 | Q9: 23.81195754 | R9: 24.03701179
B10: Scenario 2 | C10: =TRANSPOSE('Adoption profile'!N53:N68)*100 -> 0.3247682076 | D10: 0.533119348 | E10: 0.8676760366 | F10: 1.39455588 | G10: 2.203048359 | H10: 3.399714954 | I10: 5.07781085 | J10: 7.242426708 | K10: 9.69874088 | L10: 12.04050839 | M10: 13.89824499 | N10: 15.17267686 | O10: 15.97212253 | P10: 16.45122925 | Q10: 16.73269613 | R10: 16.89695513
A12: Increase in VAD % | B12: Scenario 1 | C12: =INDEX('prod sims'!$AO$11:$AO$58,MATCH(Results!$B$3,'prod sims'!$D$11:$D$58,))*Results!C9+INDEX('prod sims'!$AP$11:$AP$58,MATCH(Results!$B$3,'prod sims'!$D$11:$D$58,))*Results!C9^2+INDEX('prod sims'!$AQ$11:$AQ$58,MATCH(Results!$B$3,'prod sims'!$D$11:$D$58,)) -> 3.465870745 | D12: =INDEX('prod sims'!$AO$11:$AO$58,MATCH(Results!$B$3,'prod sims'!$D$11:$D$58,))*Results!D9+INDEX('prod sims'!$AP$11:$AP$58,MATCH(Results!$B$3,'prod sims'!$D$11:$D$58,))*Results!D9^2+INDEX('prod sims'!$AQ$11:$AQ$58,MATCH(Results!$B$3,'prod sims'!$D$11:$D$58,)) -> 5.375703086 | E12: =INDEX('prod sims'!$AO$11:$AO$58,MATCH(Results!$B$3,'prod sims'!$D$11:$D$58,))*Results!E9+INDEX('prod sims'!$AP$11:$AP$58,MATCH(Results!$B$3,'prod sims'!$D$11:$D$58,))*Results!E9^2+INDEX('prod sims'!$AQ$11:$AQ$58,MATCH(Results!$B$3,'prod sims'!$D$11:$D$58,)) -> 7.416241933 | F12: =INDEX('prod sims'!$AO$11:$AO$58,MATCH(Results!$B$3,'prod sims'!$D$11:$D$58,))*Results!F9+INDEX('prod sims'!$AP$11:$AP$58,MATCH(Results!$B$3,'prod sims'!$D$11:$D$58,))*Results!F9^2+INDEX('prod sims'!$AQ$11:$AQ$58,MATCH(Results!$B$3,'prod sims'!$D$11:$D$58,)) -> 9.278607004 | G12: =INDEX('prod sims'!$AO$11:$AO$58,MATCH(Results!$B$3,'prod sims'!$D$11:$D$58,))*Results!G9+INDEX('prod sims'!$AP$11:$AP$58,MATCH(Results!$B$3,'prod sims'!$D$11:$D$58,))*Results!G9^2+INDEX('prod sims'!$AQ$11:$AQ$58,MATCH(Results!$B$3,'prod sims'!$D$11:$D$58,)) -> 10.92337369 | H12: =INDEX('prod sims'!$AO$11:$AO$58,MATCH(Results!$B$3,'prod sims'!$D$11:$D$58,))*Results!H9+INDEX('prod sims'!$AP$11:$AP$58,MATCH(Results!$B$3,'prod sims'!$D$11:$D$58,))*Results!H9^2+INDEX('prod sims'!$AQ$11:$AQ$58,MATCH(Results!$B$3,'prod sims'!$D$11:$D$58,)) -> 12.48427698 | I12: =INDEX('prod sims'!$AO$11:$AO$58,MATCH(Results!$B$3,'prod sims'!$D$11:$D$58,))*Results!I9+INDEX('prod sims'!$AP$11:$AP$58,MATCH(Results!$B$3,'prod sims'!$D$11:$D$58,))*Results!I9^2+INDEX('prod sims'!$AQ$11:$AQ$58,MATCH(Results!$B$3,'prod sims'!$D$11:$D$58,)) -> 14.08163312 | J12: =INDEX('prod sims'!$AO$11:$AO$58,MATCH(Results!$B$3,'prod sims'!$D$11:$D$58,))*Results!J9+INDEX('prod sims'!$AP$11:$AP$58,MATCH(Results!$B$3,'prod sims'!$D$11:$D$58,))*Results!J9^2+INDEX('prod sims'!$AQ$11:$AQ$58,MATCH(Results!$B$3,'prod sims'!$D$11:$D$58,)) -> 15.7424068 | K12: =INDEX('prod sims'!$AO$11:$AO$58,MATCH(Results!$B$3,'prod sims'!$D$11:$D$58,))*Results!K9+INDEX('prod sims'!$AP$11:$AP$58,MATCH(Results!$B$3,'prod sims'!$D$11:$D$58,))*Results!K9^2+INDEX('prod sims'!$AQ$11:$AQ$58,MATCH(Results!$B$3,'prod sims'!$D$11:$D$58,)) -> 17.39915443 | L12: =INDEX('prod sims'!$AO$11:$AO$58,MATCH(Results!$B$3,'prod sims'!$D$11:$D$58,))*Results!L9+INDEX('prod sims'!$AP$11:$AP$58,MATCH(Results!$B$3,'prod sims'!$D$11:$D$58,))*Results!L9^2+INDEX('prod sims'!$AQ$11:$AQ$58,MATCH(Results!$B$3,'prod sims'!$D$11:$D$58,)) -> 18.92900858 | M12: =INDEX('prod sims'!$AO$11:$AO$58,MATCH(Results!$B$3,'prod sims'!$D$11:$D$58,))*Results!M9+INDEX('prod sims'!$AP$11:$AP$58,MATCH(Results!$B$3,'prod sims'!$D$11:$D$58,))*Results!M9^2+INDEX('prod sims'!$AQ$11:$AQ$58,MATCH(Results!$B$3,'prod sims'!$D$11:$D$58,)) -> 20.21752877 | N12: =INDEX('prod sims'!$AO$11:$AO$58,MATCH(Results!$B$3,'prod sims'!$D$11:$D$58,))*Results!N9+INDEX('prod sims'!$AP$11:$AP$58,MATCH(Results!$B$3,'prod sims'!$D$11:$D$58,))*Results!N9^2+INDEX('prod sims'!$AQ$11:$AQ$58,MATCH(Results!$B$3,'prod sims'!$D$11:$D$58,)) -> 21.21051733 | O12: =INDEX('prod sims'!$AO$11:$AO$58,MATCH(Results!$B$3,'prod sims'!$D$11:$D$58,))*Results!O9+INDEX('prod sims'!$AP$11:$AP$58,MATCH(Results!$B$3,'prod sims'!$D$11:$D$58,))*Results!O9^2+INDEX('prod sims'!$AQ$11:$AQ$58,MATCH(Results!$B$3,'prod sims'!$D$11:$D$58,)) -> 21.92091738 | P12: =INDEX('prod sims'!$AO$11:$AO$58,MATCH(Results!$B$3,'prod sims'!$D$11:$D$58,))*Results!P9+INDEX('prod sims'!$AP$11:$AP$58,MATCH(Results!$B$3,'prod sims'!$D$11:$D$58,))*Results!P9^2+INDEX('prod sims'!$AQ$11:$AQ$58,MATCH(Results!$B$3,'prod sims'!$D$11:$D$58,)) -> 22.40145057 | Q12: =INDEX('prod sims'!$AO$11:$AO$58,MATCH(Results!$B$3,'prod sims'!$D$11:$D$58,))*Results!Q9+INDEX('prod sims'!$AP$11:$AP$58,MATCH(Results!$B$3,'prod sims'!$D$11:$D$58,))*Results!Q9^2+INDEX('prod sims'!$AQ$11:$AQ$58,MATCH(Results!$B$3,'prod sims'!$D$11:$D$58,)) -> 22.71400443 | R12: =INDEX('prod sims'!$AO$11:$AO$58,MATCH(Results!$B$3,'prod sims'!$D$11:$D$58,))*Results!R9+INDEX('prod sims'!$AP$11:$AP$58,MATCH(Results!$B$3,'prod sims'!$D$11:$D$58,))*Results!R9^2+INDEX('prod sims'!$AQ$11:$AQ$58,MATCH(Results!$B$3,'prod sims'!$D$11:$D$58,)) -> 22.91207602
B13: Scenario 2 | C13: =INDEX('prod sims'!$AO$11:$AO$58,MATCH(Results!$B$3,'prod sims'!$D$11:$D$58,))*Results!C10+INDEX('prod sims'!$AP$11:$AP$58,MATCH(Results!$B$3,'prod sims'!$D$11:$D$58,))*Results!C10^2+INDEX('prod sims'!$AQ$11:$AQ$58,MATCH(Results!$B$3,'prod sims'!$D$11:$D$58,)) -> 0.3575468301 | D13: =INDEX('prod sims'!$AO$11:$AO$58,MATCH(Results!$B$3,'prod sims'!$D$11:$D$58,))*Results!D10+INDEX('prod sims'!$AP$11:$AP$58,MATCH(Results!$B$3,'prod sims'!$D$11:$D$58,))*Results!D10^2+INDEX('prod sims'!$AQ$11:$AQ$58,MATCH(Results!$B$3,'prod sims'!$D$11:$D$58,)) -> 0.5705437001 | E13: =INDEX('prod sims'!$AO$11:$AO$58,MATCH(Results!$B$3,'prod sims'!$D$11:$D$58,))*Results!E10+INDEX('prod sims'!$AP$11:$AP$58,MATCH(Results!$B$3,'prod sims'!$D$11:$D$58,))*Results!E10^2+INDEX('prod sims'!$AQ$11:$AQ$58,MATCH(Results!$B$3,'prod sims'!$D$11:$D$58,)) -> 0.912010589 | F13: =INDEX('prod sims'!$AO$11:$AO$58,MATCH(Results!$B$3,'prod sims'!$D$11:$D$58,))*Results!F10+INDEX('prod sims'!$AP$11:$AP$58,MATCH(Results!$B$3,'prod sims'!$D$11:$D$58,))*Results!F10^2+INDEX('prod sims'!$AQ$11:$AQ$58,MATCH(Results!$B$3,'prod sims'!$D$11:$D$58,)) -> 1.448399639 | G13: =INDEX('prod sims'!$AO$11:$AO$58,MATCH(Results!$B$3,'prod sims'!$D$11:$D$58,))*Results!G10+INDEX('prod sims'!$AP$11:$AP$58,MATCH(Results!$B$3,'prod sims'!$D$11:$D$58,))*Results!G10^2+INDEX('prod sims'!$AQ$11:$AQ$58,MATCH(Results!$B$3,'prod sims'!$D$11:$D$58,)) -> 2.268217005 | H13: =INDEX('prod sims'!$AO$11:$AO$58,MATCH(Results!$B$3,'prod sims'!$D$11:$D$58,))*Results!H10+INDEX('prod sims'!$AP$11:$AP$58,MATCH(Results!$B$3,'prod sims'!$D$11:$D$58,))*Results!H10^2+INDEX('prod sims'!$AQ$11:$AQ$58,MATCH(Results!$B$3,'prod sims'!$D$11:$D$58,)) -> 3.474385067 | I13: =INDEX('prod sims'!$AO$11:$AO$58,MATCH(Results!$B$3,'prod sims'!$D$11:$D$58,))*Results!I10+INDEX('prod sims'!$AP$11:$AP$58,MATCH(Results!$B$3,'prod sims'!$D$11:$D$58,))*Results!I10^2+INDEX('prod sims'!$AQ$11:$AQ$58,MATCH(Results!$B$3,'prod sims'!$D$11:$D$58,)) -> 5.151207491 | J13: =INDEX('prod sims'!$AO$11:$AO$58,MATCH(Results!$B$3,'prod sims'!$D$11:$D$58,))*Results!J10+INDEX('prod sims'!$AP$11:$AP$58,MATCH(Results!$B$3,'prod sims'!$D$11:$D$58,))*Results!J10^2+INDEX('prod sims'!$AQ$11:$AQ$58,MATCH(Results!$B$3,'prod sims'!$D$11:$D$58,)) -> 7.289011015 | K13: =INDEX('prod sims'!$AO$11:$AO$58,MATCH(Results!$B$3,'prod sims'!$D$11:$D$58,))*Results!K10+INDEX('prod sims'!$AP$11:$AP$58,MATCH(Results!$B$3,'prod sims'!$D$11:$D$58,))*Results!K10^2+INDEX('prod sims'!$AQ$11:$AQ$58,MATCH(Results!$B$3,'prod sims'!$D$11:$D$58,)) -> 9.680554028 | L13: =INDEX('prod sims'!$AO$11:$AO$58,MATCH(Results!$B$3,'prod sims'!$D$11:$D$58,))*Results!L10+INDEX('prod sims'!$AP$11:$AP$58,MATCH(Results!$B$3,'prod sims'!$D$11:$D$58,))*Results!L10^2+INDEX('prod sims'!$AQ$11:$AQ$58,MATCH(Results!$B$3,'prod sims'!$D$11:$D$58,)) -> 11.92657159 | M13: =INDEX('prod sims'!$AO$11:$AO$58,MATCH(Results!$B$3,'prod sims'!$D$11:$D$58,))*Results!M10+INDEX('prod sims'!$AP$11:$AP$58,MATCH(Results!$B$3,'prod sims'!$D$11:$D$58,))*Results!M10^2+INDEX('prod sims'!$AQ$11:$AQ$58,MATCH(Results!$B$3,'prod sims'!$D$11:$D$58,)) -> 13.68474225 | N13: =INDEX('prod sims'!$AO$11:$AO$58,MATCH(Results!$B$3,'prod sims'!$D$11:$D$58,))*Results!N10+INDEX('prod sims'!$AP$11:$AP$58,MATCH(Results!$B$3,'prod sims'!$D$11:$D$58,))*Results!N10^2+INDEX('prod sims'!$AQ$11:$AQ$58,MATCH(Results!$B$3,'prod sims'!$D$11:$D$58,)) -> 14.87879187 | O13: =INDEX('prod sims'!$AO$11:$AO$58,MATCH(Results!$B$3,'prod sims'!$D$11:$D$58,))*Results!O10+INDEX('prod sims'!$AP$11:$AP$58,MATCH(Results!$B$3,'prod sims'!$D$11:$D$58,))*Results!O10^2+INDEX('prod sims'!$AQ$11:$AQ$58,MATCH(Results!$B$3,'prod sims'!$D$11:$D$58,)) -> 15.62279724 | P13: =INDEX('prod sims'!$AO$11:$AO$58,MATCH(Results!$B$3,'prod sims'!$D$11:$D$58,))*Results!P10+INDEX('prod sims'!$AP$11:$AP$58,MATCH(Results!$B$3,'prod sims'!$D$11:$D$58,))*Results!P10^2+INDEX('prod sims'!$AQ$11:$AQ$58,MATCH(Results!$B$3,'prod sims'!$D$11:$D$58,)) -> 16.0668251 | Q13: =INDEX('prod sims'!$AO$11:$AO$58,MATCH(Results!$B$3,'prod sims'!$D$11:$D$58,))*Results!Q10+INDEX('prod sims'!$AP$11:$AP$58,MATCH(Results!$B$3,'prod sims'!$D$11:$D$58,))*Results!Q10^2+INDEX('prod sims'!$AQ$11:$AQ$58,MATCH(Results!$B$3,'prod sims'!$D$11:$D$58,)) -> 16.32703598 | R13: =INDEX('prod sims'!$AO$11:$AO$58,MATCH(Results!$B$3,'prod sims'!$D$11:$D$58,))*Results!R10+INDEX('prod sims'!$AP$11:$AP$58,MATCH(Results!$B$3,'prod sims'!$D$11:$D$58,))*Results!R10^2+INDEX('prod sims'!$AQ$11:$AQ$58,MATCH(Results!$B$3,'prod sims'!$D$11:$D$58,)) -> 16.47866882
A34: Use the area below for any additional calculations on the results | F34: (some examples provided)
C37: =C4 -> 2025 | D37: =D4 -> 2026 | E37: 2027 | F37: 2028 | G37: 2029 | H37: 2030 | I37: 2031 | J37: 2032 | K37: 2033 | L37: 2034 | M37: 2035 | N37: 2036 | O37: 2037 | P37: 2038 | Q37: 2039 | R37: 2040
A38: Difference between scenarios | C38: =C6-C7 -> 15.62499313 | D38: 24.52794904 | E38: 33.72612382 | F38: 41.44584832 | G38: 46.78744436 | H38: 49.76953199 | I38: 50.38134627 | J38: 48.67423275 | K38: 45.33607544 | L38: 41.93440988 | M38: 39.86825314 | N38: 39.36077663 | O38: 39.86433505 | P38: 40.80934712 | Q38: 41.86439467 | R38: 42.89037631
A40: Present value of difference | C40: =NPV(0.03,C38:R38) -> 497.4895967
A42: Value added growth rates | B42: (% per year)
A43: Baseline | B43: =LOGEST(C5:R5)-1 -> 0.01953936979
A44: Scenario 1 | B44: =LOGEST(C6:R6)-1 -> 0.03172272984
A45: Scenario 2 | B45: =LOGEST(C7:R7)-1 -> 0.03211558496

Sheet Value added baseline (hidden)
D1: Value added ($m)
C3: farming | D3: =SUM(D11:D52) -> 9611.288725 | E3: 9313.576323 | F3: =SUM(F11:F52) -> 9583.068587 | G3: 9866.192346 | H3: 10105.17719 | I3: 10384.4817 | J3: 10656.80096 | K3: 11005.96808 | L3: 11366.37882 | M3: 11738.5789 | N3: 12117.88011 | O3: 12491.99889 | P3: 12863.46147 | Q3: 13233.03459 | R3: 13601.20931 | S3: 13968.23152 | T3: 14334.10978 | U3: 14698.7723 | V3: 15062.13812 | W3: 15424.21032
E4: =E3/D3-1 -> -0.03097528447 | F4: =F3/E3-1 -> 0.02893542227 | G4: =G3/F3-1 -> 0.02954416501 | H4: 0.02422260088 | I4: 0.02763974436 | J4: 0.0262236733 | K4: 0.03276472282 | L4: 0.03274684514 | M4: 0.03274570452 | N4: 0.03231236183 | O4: 0.03087328603 | P4: 0.02973604018 | Q4: 0.02873045633 | R4: 0.02782239568 | S4: 0.02698452782 | T4: 0.02619359922 | U4: 0.02544019281 | V4: 0.02472082809 | W4: 0.0240385661
C5: processing | D5: =SUM(D53:D58) -> 547.0528815 | E5: 518.2597242 | F5: =SUM(F53:F58) -> 504.9143998 | G5: 520.4922893 | H5: 532.3253958 | I5: 532.9152296 | J5: 531.3112394 | K5: 589.9909672 | L5: 646.8679908 | M5: 702.6879121 | N5: 755.4558521 | O5: 804.453612 | P5: 850.2398641 | Q5: 893.2193338 | R5: 933.7749165 | S5: 972.2531291 | T5: 1008.947245 | U5: 1044.103647 | V5: 1077.919596 | W5: 1110.546541
E6: =E5/D5-1 -> -0.05263322484 | F6: =F5/E5-1 -> -0.02575026335 | G6: =G5/F5-1 -> 0.03085253558 | H6: 0.02273445102 | I6: 0.001108032445 | J6: -0.003009841081 | K6: 0.1104432269 | L6: 0.09640321087 | M6: 0.08629260073 | N6: 0.07509441835 | O6: 0.06485853508 | P6: 0.05691596314 | Q6: 0.05054981715 | R6: 0.0454038344 | S6: 0.04120716028 | T6: 0.03774131919 | U6: 0.03484463884 | V6: 0.03238753998 | W6: 0.03026844048
C7: total | D7: =SUM(D3,D5) -> 10158.34161 | E7: 9831.836047 | F7: =SUM(F3,F5) -> 10087.98299 | G7: 10386.68464 | H7: 10637.50258 | I7: 10917.39693 | J7: 11188.11219 | K7: 11595.95905 | L7: 12013.24681 | M7: 12441.26681 | N7: 12873.33596 | O7: 13296.4525 | P7: 13713.70133 | Q7: 14126.25392 | R7: 14534.98423 | S7: 14940.48465 | T7: 15343.05702 | U7: 15742.87594 | V7: 16140.05771 | W7: 16534.75686
E8: =E7/D7-1 -> -0.03214162039 | F8: =F7/E7-1 -> 0.02605280826 | G8: =G7/F7-1 -> 0.02960965036 | H8: 0.02414802747 | I8: 0.02631203572 | J8: 0.02479668616 | K8: 0.03645359021 | L8: 0.03598561829 | M8: 0.03562900274 | N8: 0.03472871013 | O8: 0.03286766848 | P8: 0.03138046279 | Q8: 0.0300832414 | R8: 0.02893409033 | S8: 0.02789823624 | T8: 0.02694506794 | U8: 0.02605862171 | V8: 0.02522930201 | W8: 0.02445463052
D10: 2021 | E10: =D10+1 -> 2022 | F10: =E10+1 -> 2023 | G10: =F10+1 -> 2024 | H10: 2025 | I10: 2026 | J10: 2027 | K10: 2028 | L10: 2029 | M10: 2030 | N10: 2031 | O10: 2032 | P10: 2033 | Q10: 2034 | R10: 2035 | S10: 2036 | T10: 2037 | U10: 2038 | V10: 2039 | W10: 2040
B11: 1 | C11: Apples | D11: 484.0543981 | E11: 482.9706108 | F11: 487.8532399 | G11: 495.3520367 | H11: 502.6822674 | I11: 510.4502695 | J11: 518.5258955 | K11: 529.3071611 | L11: 540.5730488 | M11: 552.3876698 | N11: 564.1539199 | O11: 575.7950293 | P11: 587.3613494 | Q11: 598.8545124 | R11: 610.2794425 | S11: 621.6437655 | T11: 632.9560916 | U11: 644.226677 | V11: 655.4658133 | W11: 666.6821325
B12: 2 | C12: Pears and nashis | D12: 113.1464467 | E12: 113.096722 | F12: 112.885955 | G12: 114.6850547 | H12: 117.026281 | I12: 120.1797143 | J12: 123.8476863 | K12: 127.3747324 | L12: 130.8543711 | M12: 134.3452583 | N12: 137.7445968 | O12: 141.0415401 | P12: 144.2572246 | Q12: 147.4030222 | R12: 150.4893751 | S12: 153.5261081 | T12: 156.522032 | U12: 159.485507 | V12: 162.424076 | W12: 165.3444647
B13: 3 | C13: Summerfruit | D13: 230.9775339 | E13: 230.3972228 | F13: 234.1301969 | G13: 239.1390073 | H13: 245.1112909 | I13: 252.986276 | J13: 261.7452536 | K13: 271.0401543 | L13: 280.5995337 | M13: 290.4457606 | N13: 300.1313055 | O13: 309.5358367 | P13: 318.6586312 | Q13: 327.4927887 | R13: 336.0389655 | S13: 344.3032776 | T13: 352.2953283 | U13: 360.0270359 | V13: 367.5105451 | W13: 374.7578974
B14: 4 | C14: Cherries | D14: 203.6805066 | E14: 204.6435733 | F14: 205.7443399 | G14: 208.2331612 | H14: 213.3670642 | I14: 222.2031093 | J14: 232.4191875 | K14: 242.1391209 | L14: 251.9562472 | M14: 261.8499149 | N14: 271.2947573 | O14: 280.242813 | P14: 288.7383018 | Q14: 296.8199478 | R14: 304.5236562 | S14: 311.882384 | T14: 318.9249705 | U14: 325.6764709 | V14: 332.158113 | W14: 338.3872593
B15: 5 | C15: Strawberries | D15: 247.268659 | E15: 233.9596798 | F15: 243.7317386 | G15: 254.4400955 | H15: 260.5925683 | I15: 265.8199568 | J15: 270.57901 | K15: 275.3481113 | L15: 280.4411966 | M15: 285.8133071 | N15: 291.4046943 | O15: 297.0464457 | P15: 302.7940986 | Q15: 308.6641954 | R15: 314.6740104 | S15: 320.8405235 | T15: 327.1785397 | U15: 333.7013613 | V15: 340.4187456 | W15: 347.3357357
B16: 6 | C16: Rubus | D16: 563.3209554 | E16: 566.0221304 | F16: 569.5293486 | G16: 575.8990164 | H16: 584.1027804 | I16: 594.8292375 | J16: 606.6192809 | K16: 619.2486246 | L16: 632.5908762 | M16: 646.7643692 | N16: 660.9951189 | O16: 675.2763505 | P16: 689.6562477 | Q16: 704.1199431 | R16: 718.6471525 | S16: 733.2139915 | T16: 747.7919821 | U16: 762.3517573 | V16: 776.8620484 | W16: 791.289986
B17: 7 | C17: Kiwi fruit | D17: 16.78658258 | E17: 15.6990931 | F17: 16.57794583 | G17: 17.20916828 | H17: 18.15955237 | I17: 19.65089817 | J17: 21.16241269 | K17: 22.65235531 | L17: 24.05410467 | M17: 25.37827326 | N17: 26.58933271 | O17: 27.68247591 | P17: 28.68028806 | Q17: 29.59937553 | R17: 30.45232831 | S17: 31.24877416 | T17: 31.99607623 | U17: 32.6998669 | V17: 33.36447184 | W17: 33.9930868
B18: 8 | C18: Oranges | D18: 308.7577862 | E18: 275.1557596 | F18: 295.6192253 | G18: 308.544588 | H18: 322.3462502 | I18: 341.0959333 | J18: 360.7554491 | K18: 389.2811877 | L18: 416.8473446 | M18: 443.3669253 | N18: 468.4156309 | O18: 491.0514398 | P18: 511.6734619 | Q18: 530.5924157 | R18: 548.0559139 | S18: 564.2607709 | T18: 579.3607677 | U18: 593.4761668 | V18: 606.7003614 | W18: 619.1035008
B19: 9 | C19: Mandarins | D19: 259.8275334 | E19: 223.74103 | F19: 252.9840084 | G19: 262.7609304 | H19: 273.7926917 | I19: 288.4716772 | J19: 303.601367 | K19: 320.0649294 | L19: 337.1583747 | M19: 354.6346844 | N19: 372.333591 | O19: 388.8953747 | P19: 404.3851498 | Q19: 418.879901 | R19: 432.4628613 | S19: 445.2135759 | T19: 457.2041049 | U19: 468.4968739 | V19: 479.1441629 | W19: 489.1886817
B20: 10 | C20: Other citrus | D20: 125.8179997 | E20: 114.4208256 | F20: 121.6837373 | G20: 127.5426208 | H20: 130.8760723 | I20: 133.9859633 | J20: 136.6501488 | K20: 136.4441825 | L20: 136.2708263 | M20: 136.1307712 | N20: 136.4287309 | O20: 137.0237236 | P20: 137.992371 | Q20: 139.3816707 | R20: 141.2251367 | S20: 143.5429173 | T20: 146.3416513 | U20: 149.6160144 | V20: 153.3491067 | W20: 157.5134754
B21: 11 | C21: Grapes - Table and Other | D21: 392.565479 | E21: 385.4855097 | F21: 392.241843 | G21: 404.2255525 | H21: 417.3084259 | I21: 437.09842 | J21: 457.062426 | K21: 475.3280962 | L21: 492.6098587 | M21: 509.0260123 | N21: 524.1677169 | O21: 538.1058603 | P21: 551.0937519 | Q21: 563.3165685 | R21: 574.9140747 | S21: 585.9928893 | T21: 596.6348608 | U21: 606.9035505 | V21: 616.8482197 | W21: 626.5068085
B22: 12 | C22: Grapes - Total Dried | D22: 15.72001681 | E22: 15.4713604 | F22: 15.7464555 | G22: 16.25108358 | H22: 16.82619629 | I22: 17.69347544 | J22: 18.56236609 | K22: 19.34786653 | L22: 20.08265022 | M22: 20.77368805 | N22: 21.40419254 | O22: 21.98045499 | P22: 22.51404493 | Q22: 23.01343832 | R22: 23.48504786 | S22: 23.93379352 | T22: 24.36351193 | U22: 24.77714425 | V22: 25.17698332 | W22: 25.56482035
B23: 13 | C23: Other temperate fruit | D23: 16.8120202 | E23: 15.0326718 | F23: 16.58530458 | G23: 17.27787882 | H23: 19.00238049 | I23: 22.02934663 | J23: 25.41103441 | K23: 25.57047734 | L23: 25.78958172 | M23: 26.07081944 | N23: 26.62170775 | O23: 27.32345805 | P23: 28.17902737 | Q23: 29.18876741 | R23: 30.35219714 | S23: 31.66789019 | T23: 33.13318492 | U23: 34.74430451 | V23: 36.49625469 | W23: 38.38292961
B24: 14 | C24: Bananas | D24: 360.8367422 | E24: 349.569032 | F24: 362.3490842 | G24: 374.1928202 | H24: 381.6804269 | I24: 387.355327 | J24: 391.7223765 | K24: 397.9395443 | L24: 404.551151 | M24: 411.5013443 | N24: 418.6336879 | O24: 425.7354721 | P24: 432.8861874 | Q24: 440.1036132 | R24: 447.40727 | S24: 454.8186937 | T24: 462.3594457 | U24: 470.0535757 | V24: 477.9252606 | W24: 485.9962917
B25: 15 | C25: Pineapples | D25: 25.70704225 | E25: 25.39614731 | F25: 25.49940628 | G25: 26.02063514 | H25: 26.45759652 | I25: 26.77118774 | J25: 27.06021566 | K25: 28.04545287 | L25: 29.04533396 | M25: 30.08362802 | N25: 31.12228992 | O25: 32.14812516 | P25: 33.16362849 | Q25: 34.16637982 | R25: 35.15419081 | S25: 36.12522431 | T25: 37.07782127 | U25: 38.01071708 | V25: 38.92282803 | W25: 39.81304649
B26: 16 | C26: Avocados | D26: 268.4408451 | E26: 262.859963 | F26: 271.0106033 | G26: 280.3908 | H26: 289.6974147 | I26: 301.6765407 | J26: 313.9172416 | K26: 327.8503906 | L26: 342.0874904 | M26: 356.7342776 | N26: 371.3566935 | O26: 385.7793928 | P26: 400.0631686 | Q26: 414.1898314 | R26: 428.1078791 | S26: 441.7468986 | T26: 455.0285689 | U26: 467.8767504 | V26: 480.2215522 | W26: 492.0010995
B27: 17 | C27: Mangoes | D27: 91.95211268 | E27: 91.51230085 | F27: 92.84645886 | G27: 94.85340745 | H27: 97.1653775 | I27: 100.6350313 | J27: 104.7361128 | K27: 108.3202726 | L27: 112.1746927 | M27: 116.3041763 | N27: 120.5856742 | O27: 124.9281162 | P27: 129.3119908 | Q27: 133.7134304 | R27: 138.1114237 | S27: 142.4878118 | T27: 146.8270823 | U27: 151.1164096 | V27: 155.3449526 | W27: 159.5035668
B28: 18 | C28: Melons | D28: 71.66035296 | E28: 71.49542046 | F28: 72.23853401 | G28: 73.53932179 | H28: 74.93871597 | I28: 77.0855266 | J28: 79.7155154 | K28: 81.95356857 | L28: 84.34685669 | M28: 86.86236293 | N28: 89.39067502 | O28: 91.86593335 | P28: 94.27529101 | Q28: 96.61000296 | R28: 98.8681329 | S28: 101.0522459 | T28: 103.1674456 | U28: 105.2201879 | V28: 107.2172202 | W28: 109.1651486
B29: 19 | C29: Other tropical fruit | D29: 57.51126761 | E29: 57.23350511 | F29: 57.99576968 | G29: 59.00227014 | H29: 59.90706779 | I29: 60.98949898 | J29: 62.21591074 | K29: 64.20364491 | L29: 66.78183517 | M29: 70.16356543 | N29: 74.31213158 | O29: 79.20494578 | P29: 84.77777149 | Q29: 90.89422373 | R29: 97.3701958 | S29: 103.9935546 | T29: 110.5411313 | U29: 116.7920503 | V29: 122.5372322 | W29: 127.5859924
B30: 20 | C30: Olives | D30: 131.0951813 | E30: 119.5538647 | F30: 121.7424908 | G30: 126.7856475 | H30: 130.4206497 | I30: 132.6677703 | J30: 134.5038954 | K30: 145.6915686 | L30: 157.3762263 | M30: 169.5157336 | N30: 181.7652893 | O30: 193.705916 | P30: 205.3354226 | Q30: 216.6404538 | R30: 227.6108587 | S30: 238.2389097 | T30: 248.5175981 | U30: 258.4412529 | V30: 268.0044026 | W30: 277.2014475
B31: 21 | C31: Macadamia | D31: 223.9197739 | E31: 186.9401176 | F31: 204.0400615 | G31: 220.5987605 | H31: 233.7003039 | I31: 249.8701073 | J31: 265.3234374 | K31: 304.6359495 | L31: 345.7647609 | M31: 389.1534475 | N31: 433.1476386 | O31: 475.9310777 | P31: 517.2196872 | Q31: 556.7204873 | R31: 594.1530358 | S31: 629.2472894 | T31: 661.7440607 | U31: 691.3952564 | V31: 717.9630623 | W31: 741.2219871
B32: 22 | C32: Almonds | D32: 549.5994488 | E32: 522.9750151 | F32: 546.7193493 | G32: 570.5609395 | H32: 599.8423786 | I32: 647.7714133 | J32: 701.4049179 | K32: 726.9174416 | L32: 753.995639 | M32: 782.8396608 | N32: 817.07189 | O32: 853.7785364 | P32: 893.1913282 | Q32: 935.5489895 | R32: 981.1425951 | S32: 1030.328458 | T32: 1083.538237 | U32: 1141.294518 | V32: 1204.226088 | W32: 1273.086742
B33: 23 | C33: Other nuts | D33: 104.6156786 | E33: 91.9415707 | F33: 98.76465523 | G33: 106.625792 | H33: 112.6786105 | I33: 121.8443114 | J33: 131.4221336 | K33: 140.4731573 | L33: 150.5109974 | M33: 161.5788062 | N33: 173.9545075 | O33: 187.0196106 | P33: 200.7890156 | Q33: 215.2649133 | R33: 230.4457199 | S33: 246.324285 | T33: 262.8865934 | U33: 280.110946 | V33: 297.9676478 | W33: 316.4182146
B34: 24 | C34: Potatoes | D34: 480.1942839 | E34: 455.6572455 | F34: 463.764928 | G34: 484.3034549 | H34: 494.4841019 | I34: 500.5987345 | J34: 503.401357 | K34: 524.9777802 | L34: 547.1773256 | M34: 569.6344308 | N34: 591.7717959 | O34: 612.7579747 | P34: 632.7876319 | Q34: 651.9878737 | R34: 670.4855483 | S34: 688.3997156 | T34: 705.8345666 | U34: 722.8828103 | V34: 739.6219184 | W34: 756.116024
B35: 25 | C35: Carrots | D35: 125.4776942 | E35: 129.6938283 | F35: 132.5820898 | G35: 135.9439916 | H35: 138.2467201 | I35: 141.4773093 | J35: 143.6683151 | K35: 147.7320654 | L35: 151.8757353 | M35: 156.0630329 | N35: 160.2991305 | O35: 164.4267444 | P35: 168.4586766 | Q35: 172.4047751 | R35: 176.2750294 | S35: 180.07947 | T35: 183.8277254 | U35: 187.5290893 | V35: 191.1919412 | W35: 194.8238634
B36: 26 | C36: Onions | D36: 105.7358766 | E36: 105.7517711 | F36: 107.9033919 | G36: 111.8622282 | H36: 113.8721616 | I36: 116.1710378 | J36: 117.6676479 | K36: 122.5479089 | L36: 127.1069652 | M36: 131.3420902 | N36: 135.1723904 | O36: 138.633772 | P36: 141.819898 | Q36: 144.7955506 | R36: 147.6076449 | S36: 150.2904051 | T36: 152.8689786 | U36: 155.3621856 | V36: 157.7842005 | W36: 160.1461717
B37: 27 | C37: Pumpkins | D37: 40.16973783 | E37: 39.55004813 | F37: 40.85814795 | G37: 41.9938459 | H37: 42.78258421 | I37: 43.48302011 | J37: 43.99983356 | K37: 44.89213041 | L37: 45.85869564 | M37: 46.89690467 | N37: 48.03601708 | O37: 49.20790069 | P37: 50.42007479 | Q37: 51.67407548 | R37: 52.97113446 | S37: 54.31212689 | T37: 55.69737239 | U37: 57.12685328 | V37: 58.59999746 | W37: 60.11556257
B38: 28 | C38: Sweet corn | D38: 54.46728215 | E38: 52.15505637 | F38: 53.83617367 | G38: 55.60361181 | H38: 56.66738453 | I38: 57.34388784 | J38: 57.77387201 | K38: 59.06165946 | L38: 60.45609757 | M38: 61.9458039 | N38: 63.55255556 | O38: 65.15872462 | P38: 66.7675131 | Q38: 68.37396093 | R38: 69.97392712 | S38: 71.56429419 | T38: 73.14280321 | U38: 74.70850865 | V38: 76.26140113 | W38: 77.80208121
B39: 29 | C39: Peas and beans | D39: 103.4120079 | E39: 95.11602978 | F39: 100.3217118 | G39: 104.6422258 | H39: 106.8974138 | I39: 108.6173634 | J39: 109.4850187 | K39: 112.167829 | L39: 115.2280693 | M39: 118.702518 | N39: 122.6575942 | O39: 126.8408285 | P39: 131.2458616 | Q39: 135.8404188 | R39: 140.5833244 | S39: 145.4282038 | T39: 150.3261106 | U39: 155.2286983 | V39: 160.0896078 | W39: 164.8655586
B40: 30 | C40: Lettuce | D40: 67.47674341 | E40: 66.44807697 | F40: 67.80505359 | G40: 69.11442424 | H40: 70.03201188 | I40: 70.79025471 | J40: 71.42194061 | K40: 72.06562392 | L40: 72.71595214 | M40: 73.3703661 | N40: 74.04194455 | O40: 74.71250977 | P40: 75.39646094 | Q40: 76.09830978 | R40: 76.82222527 | S40: 77.57258405 | T40: 78.35407212 | U40: 79.17236694 | V40: 80.03392601 | W40: 80.94569045
B41: 31 | C41: Broccoli | D41: 126.033287 | E41: 123.9305312 | F41: 127.6964838 | G41: 131.5310126 | H41: 133.9838656 | I41: 136.3255742 | J41: 137.9962844 | K41: 142.0749276 | L41: 146.7026293 | M41: 151.8778468 | N41: 157.44049 | O41: 163.138651 | P41: 168.9011768 | Q41: 174.6514359 | R41: 180.3261791 | S41: 185.8772263 | T41: 191.2703269 | U41: 196.4831313 | V41: 201.5021132 | W41: 206.3194878
B42: 32 | C42: Cauliflower | D42: 32.87665028 | E42: 31.98335603 | F42: 32.93688319 | G42: 33.84628645 | H42: 34.42984698 | I42: 34.89724646 | J42: 35.25143692 | K42: 35.8484356 | L42: 36.50337649 | M42: 37.21685674 | N42: 37.980002 | O42: 38.76538774 | P42: 39.57824766 | Q42: 40.4168096 | R42: 41.27716954 | S42: 42.15367355 | T42: 43.03947464 | U42: 43.92746114 | V42: 44.81071732 | W42: 45.68282863
B43: 33 | C43: Capsicums; Chillies & Peppers | D43: 105.9094468 | E43: 103.9569073 | F43: 106.8889724 | G43: 109.6061968 | H43: 111.5055588 | I43: 113.0493527 | J43: 114.2709236 | K43: 116.0740469 | L43: 117.9937513 | M43: 120.0118683 | N43: 122.1250966 | O43: 124.225051 | P43: 126.3275305 | Q43: 128.4339586 | R43: 130.5472773 | S43: 132.6722241 | T43: 134.8149511 | U43: 136.9839389 | V43: 139.1893251 | W43: 141.4424531
B44: 34 | C44: Tomatoes - processing | D44: 24.65983349 | E44: 24.12330075 | F44: 22.10408684 | G44: 22.31528794 | H44: 22.5092304 | I44: 21.93275509 | J44: 21.29193697 | K44: 24.79620548 | L44: 28.4596239 | M44: 32.17188768 | N44: 35.64852445 | O44: 38.79844443 | P44: 41.62861761 | Q44: 44.16687899 | R44: 46.45672959 | S44: 48.54524177 | T44: 50.4750587 | U44: 52.28140175 | V44: 53.99075891 | W44: 55.62135686
B45: 35 | C45: Tomatoes - fresh | D45: 244.8100996 | E45: 237.3569472 | F45: 243.9076735 | G45: 249.5090057 | H45: 253.2110539 | I45: 255.9588154 | J45: 258.1417103 | K45: 260.2719132 | L45: 262.4701225 | M45: 264.6972321 | N45: 266.9955169 | O45: 269.226047 | P45: 271.4410219 | Q45: 273.6575931 | R45: 275.895792 | S45: 278.1800518 | T45: 280.5388649 | U45: 283.0064923 | V45: 285.6200838 | W45: 288.4159262
B46: 36 | C46: Asparagus | D46: 71.33347226 | E46: 75.80785312 | F46: 76.06554476 | G46: 76.57901699 | H46: 77.26816377 | I46: 78.64172652 | J46: 79.72992152 | K46: 83.30930591 | L46: 86.53643528 | M46: 89.487379 | N46: 92.09613531 | O46: 94.44669721 | P46: 96.60793876 | Q46: 98.62569828 | R46: 100.5320299 | S46: 102.3499983 | T46: 104.0964701 | U46: 105.7840428 | V46: 107.4220647 | W46: 109.0175526
B47: 37 | C47: Mushrooms | D47: 211.615196 | E47: 193.0839242 | F47: 205.0694327 | G47: 215.1657251 | H47: 220.473425 | I47: 224.5435465 | J47: 226.5470318 | K47: 232.5722847 | L47: 238.3818967 | M47: 244.300648 | N47: 250.7599201 | O47: 257.5923061 | P47: 265.0579899 | Q47: 273.2781711 | R47: 282.2398328 | S47: 291.7705556 | T47: 301.5424431 | U47: 311.1171372 | V47: 320.0166636 | W47: 327.8002664
B48: 38 | C48: Garlic and herbs | D48: 155.5252541 | E48: 152.71237 | F48: 155.6179592 | G48: 159.4697699 | H48: 161.9359851 | I48: 163.9243542 | J48: 165.1117621 | K48: 170.1513236 | L48: 175.4221672 | M48: 180.8784601 | N48: 186.3512976 | O48: 191.6423282 | P48: 196.7743355 | Q48: 201.7521958 | R48: 206.5843307 | S48: 211.2829135 | T48: 215.8631329 | U48: 220.3438263 | V48: 224.7455905 | W48: 229.0883785
B49: 39 | C49: Other vegetables | D49: 611.2830187 | E49: 604.3855936 | F49: 621.8275918 | G49: 637.2520828 | H49: 648.3441547 | I49: 658.0663015 | J49: 665.4886006 | K49: 679.7191892 | L49: 695.0663113 | M49: 711.4840781 | N49: 729.031555 | O49: 746.7701948 | P49: 764.7409482 | Q49: 782.8993269 | R49: 801.1974318 | S49: 819.5877512 | T49: 838.0240876 | U49: 856.4669479 | V49: 874.8827334 | W49: 893.241925
B50: 40 | C50: Nursery | D50: 1804.970588 | E50: 1795.812066 | F50: 1826.165661 | G50: 1863.613733 | H50: 1893.747704 | I50: 1922.366351 | J50: 1948.583518 | K50: 1980.79711 | L50: 2014.047311 | M50: 2048.245738 | N50: 2081.574357 | O50: 2114.508351 | P50: 2147.678511 | Q50: 2181.130805 | R50: 2214.907685 | S50: 2249.046212 | T50: 2283.557152 | U50: 2318.452087 | V50: 2353.730475 | W50: 2389.371875
B51: 41 | C51: Cultivated turf | D51: 216.4905284 | E51: 215.1355155 | F51: 219.5391527 | G51: 224.3438591 | H51: 228.1908882 | I51: 231.9884855 | J51: 235.5108847 | K51: 239.4930875 | L51: 243.6348456 | M51: 247.9211044 | N51: 252.1399356 | O51: 256.3207804 | P51: 260.53484 | Q51: 264.7843868 | R51: 269.0718169 | S51: 273.3997411 | T51: 277.7685642 | U51: 282.1799654 | V51: 286.6353968 | W51: 291.1353359
B52: 42 | C52: Cut flowers | D52: 164.7733616 | E52: 155.3427762 | F52: 159.6578967 | G52: 165.3659991 | H52: 168.9125679 | I52: 171.1445916 | J52: 172.4956852 | K52: 178.237267 | L52: 184.2785077 | M52: 190.6061974 | N52: 197.1800773 | O52: 203.7282648 | P52: 210.2967534 | Q52: 216.8834889 | R52: 223.482737 | S52: 230.0850991 | T52: 236.6765371 | U52: 243.2409572 | V52: 249.7600553 | W52: 256.2136682
B53: 43 | C53: Frozen potatoes | D53: 148.5076825 | E53: 140.9105348 | F53: 140.7180156 | G53: 146.3587493 | H53: 149.115233 | I53: 150.0688784 | J53: 150.2391866 | K53: 159.1890567 | L53: 168.2152457 | M53: 177.1750441 | N53: 185.6693353 | O53: 193.5054882 | P53: 200.7767401 | Q53: 207.5497354 | R53: 213.8909083 | S53: 219.8628002 | T53: 225.5198666 | U53: 230.9093988 | V53: 236.0701414 | W53: 241.0324942
B54: 44 | C54: Canned tomatoes | D54: 55.36925442 | E54: 54.16249324 | F54: 49.62922485 | G54: 50.10844269 | H54: 50.54520419 | I54: 49.25497686 | J54: 47.82059261 | K54: 55.67474283 | L54: 63.89922177 | M54: 72.24634856 | N54: 80.07308012 | O54: 87.17159617 | P54: 93.55491799 | Q54: 99.28379323 | R54: 104.4547084 | S54: 109.172857 | T54: 113.533489 | U54: 117.6154111 | V54: 121.4778375 | W54: 125.1613683
B55: 45 | C55: Other processed vegetables | D55: 79.6604404 | E55: 76.61102337 | F55: 75.25173883 | G55: 77.16617657 | H55: 78.34680818 | I55: 78.24683757 | J55: 77.87006041 | K55: 84.06231996 | L55: 90.71053938 | M55: 97.80459707 | N55: 105.0802246 | O55: 112.3102195 | P55: 119.4643306 | Q55: 126.5044409 | R55: 133.394861 | S55: 140.1035565 | T55: 146.6027866 | U55: 152.8704207 | V55: 158.8895587 | W55: 164.6486632
B56: 46 | C56: Processed fruits and jams | D56: 120.6214209 | E56: 106.1090788 | F56: 104.9644107 | G56: 112.7795572 | H56: 119.116993 | I56: 122.3384157 | J56: 124.913612 | K56: 143.995895 | L56: 160.3451507 | M56: 175.4526797 | N56: 189.4176393 | O56: 202.2084677 | P56: 214.098616 | Q56: 225.249855 | R56: 235.7843903 | S56: 245.8010662 | T56: 255.3825437 | U56: 264.6010421 | V56: 273.5200301 | W56: 282.1944263
B57: 47 | C57: Orange and other juice | D57: 131.1566353 | E57: 129.7610185 | F57: 123.4581876 | G57: 122.7381719 | H57: 123.5405299 | I57: 121.1606102 | J57: 118.4779534 | K57: 134.0805719 | L57: 149.6662404 | M57: 164.8935291 | N57: 179.005564 | O57: 191.9806581 | P57: 204.0281912 | Q57: 215.3030293 | R57: 225.9395163 | S57: 236.0502945 | T57: 245.7246222 | U57: 255.0331758 | V57: 264.0291586 | W57: 272.7501409
B58: 48 | C58: Olive oil | D58: 11.73744798 | E58: 10.70557555 | F58: 10.89282227 | G58: 11.34119167 | H58: 11.66062758 | I58: 11.84551086 | J58: 11.98983446 | K58: 12.98838083 | L58: 14.03159284 | M58: 15.11571349 | N58: 16.2100089 | O58: 17.27718228 | P58: 18.31706827 | Q58: 19.32847994 | R58: 20.31053228 | S58: 21.26255474 | T58: 22.18393671 | U58: 23.07419869 | V58: 23.9328695 | W58: 24.75944794
D60: 2021 | E60: =D60+1 -> 2022 | F60: =E60+1 -> 2023 | G60: =F60+1 -> 2024 | H60: 2025 | I60: 2026 | J60: 2027 | K60: 2028 | L60: 2029 | M60: 2030 | N60: 2031 | O60: 2032 | P60: 2033 | Q60: 2034 | R60: 2035 | S60: 2036 | T60: 2037 | U60: 2038 | V60: 2039 | W60: 2040
C61: Fruit | D61: =SUM(D11:D30) -> 3985.939462 | E61: 3853.716423 | F61: =SUM(F11:F30) -> 3968.995686 | G61: 4076.345096 | H61: 4181.461071 | I61: 4313.67516 | J61: 4450.812786 | K61: 4607.151442 | L61: 4766.191601 | M61: 4928.152542 | N61: 5088.851737 | O61: 5244.368704 | P61: 5395.797409 | Q61: 5543.644482 | R61: 5688.230113 | S61: 5829.734 | T61: 5968.222195 | U61: 6103.693675 | V61: 6236.092351 | W61: 6365.317372
C62: Nuts | D62: =SUM(D31:D33) -> 878.1349012 | E62: 801.8567034 | F62: =SUM(F31:F33) -> 849.5240659 | G62: 897.785492 | H62: 946.221293 | I62: 1019.485832 | J62: 1098.150489 | K62: 1172.026548 | L62: 1250.271397 | M62: 1333.571915 | N62: 1424.174036 | O62: 1516.729225 | P62: 1611.200031 | Q62: 1707.53439 | R62: 1805.741351 | S62: 1905.900033 | T62: 2008.168891 | U62: 2112.80072 | V62: 2220.156798 | W62: 2330.726943
C63: Vegetables | D63: =SUM(D34:D49) -> 2560.979884 | E63: 2491.71284 | F63: =SUM(F34:F49) -> 2559.186125 | G63: 2638.738167 | H63: 2686.643662 | I63: 2725.82128 | J63: 2751.247593 | K63: 2828.262629 | L63: 2907.955155 | M63: 2990.081403 | N63: 3073.959966 | O63: 3156.343562 | P63: 3237.953924 | Q63: 3319.057033 | R63: 3399.775607 | S63: 3480.066436 | T63: 3559.716439 | U63: 3638.404892 | V63: 3715.763043 | W63: 3791.445127
C64: Nursery | D64: =SUM(D50:D52) -> 2186.234478 | E64: 2166.290357 | F64: =SUM(F50:F52) -> 2205.36271 | G64: 2253.323591 | H64: 2290.85116 | I64: 2325.499428 | J64: 2356.590088 | K64: 2398.527465 | L64: 2441.960664 | M64: 2486.77304 | N64: 2530.894369 | O64: 2574.557396 | P64: 2618.510104 | Q64: 2662.798681 | R64: 2707.462239 | S64: 2752.531052 | T64: 2798.002253 | U64: 2843.873009 | V64: 2890.125927 | W64: 2936.720879
C65: Processing | D65: =SUM(D53:D58) -> 547.0528815 | E65: 518.2597242 | F65: =SUM(F53:F58) -> 504.9143998 | G65: 520.4922893 | H65: 532.3253958 | I65: 532.9152296 | J65: 531.3112394 | K65: 589.9909672 | L65: 646.8679908 | M65: 702.6879121 | N65: 755.4558521 | O65: 804.453612 | P65: 850.2398641 | Q65: 893.2193338 | R65: 933.7749165 | S65: 972.2531291 | T65: 1008.947245 | U65: 1044.103647 | V65: 1077.919596 | W65: 1110.546541
C68: Fruit | E68: =(E61/D61-1)*100 -> -3.317236506 | F68: 2.991378988 | G68: =(G61/F61-1)*100 -> 2.704699597 | H68: =(H61/G61-1)*100 -> 2.578681928 | I68: =(I61/H61-1)*100 -> 3.161911283 | J68: =(J61/I61-1)*100 -> 3.179136601 | K68: =(K61/J61-1)*100 -> 3.512586658 | L68: =(L61/K61-1)*100 -> 3.452028021 | M68: =(M61/L61-1)*100 -> 3.398120652 | N68: =(N61/M61-1)*100 -> 3.260840516 | O68: =(O61/N61-1)*100 -> 3.056032587 | P68: =(P61/O61-1)*100 -> 2.887453441 | Q68: =(Q61/P61-1)*100 -> 2.740041227 | R68: =(R61/Q61-1)*100 -> 2.608133178 | S68: =(S61/R61-1)*100 -> 2.487661084 | T68: =(T61/S61-1)*100 -> 2.375549127 | U68: =(U61/T61-1)*100 -> 2.269879958 | V68: =(V61/U61-1)*100 -> 2.169156629 | W68: =(W61/V61-1)*100 -> 2.072211472
C69: Nuts | E69: -8.686387221 | F69: 5.944623564 | G69: 5.680995748 | H69: 5.395030491 | I69: 7.742854604 | J69: 7.716110851 | K69: 6.727316543 | L69: 6.676030425 | M69: 6.662594808 | N69: 6.793943431 | O69: 6.498867858 | P69: 6.228587459 | Q69: 5.979044019 | R69: 5.751389922 | S69: 5.546679299 | T69: 5.365908868 | U69: 5.21031019 | V69: 5.081221198 | W69: 4.98028543
C70: Vegetables | E70: -2.704708663 | F70: 2.707907758 | G70: 3.108489889 | H70: 1.815469835 | I70: 1.458236478 | J70: 0.9327945657 | K70: 2.799276836 | L70: 2.817720124 | M70: 2.824192406 | N70: 2.805226729 | O70: 2.68004779 | P70: 2.585598176 | Q70: 2.504764147 | R70: 2.431973094 | S70: 2.361650836 | T70: 2.2887495 | U70: 2.210525877 | V70: 2.126155647 | W70: 2.036784449
C71: Nursery | E71: -0.912259004 | F71: 1.803652613 | G71: 2.174738923 | H71: 1.665431846 | I71: 1.512462636 | J71: 1.336945502 | K71: 1.779578784 | L71: 1.810827691 | M71: 1.835098159 | N71: 1.774240313 | O71: 1.725201456 | P71: 1.707194735 | Q71: 1.691365492 | R71: 1.677316377 | S71: 1.66461466 | T71: 1.651977772 | U71: 1.639410964 | V71: 1.626405882 | W71: 1.612211839
C72: Processing | E72: -5.263322484 | F72: -2.575026335 | G72: 3.085253558 | H72: 2.273445102 | I72: 0.1108032445 | J72: -0.3009841081 | K72: 11.04432269 | L72: 9.640321087 | M72: 8.629260073 | N72: 7.509441835 | O72: 6.485853508 | P72: 5.691596314 | Q72: 5.054981715 | R72: 4.54038344 | S72: 4.120716028 | T72: 3.774131919 | U72: 3.484463884 | V72: 3.238753998 | W72: 3.026844048
C76: Fruit and tree nuts excl table grapes
C77: Table grapes
C78: Vegetables
C79: Nursery
C80: Porcessing
C81: Total
C83: Fruit and tree nuts excl table grapes
C84: Table grapes
C85: Vegetables
C86: Nursery
C87: Porcessing
C88: Total

Sheet prod sims (hidden)
AO7: Used parameters
E8: Generic productivity | K8: x | L8: x2 | X8: Labour productivity | AD8: x | AE8: x2 | AO8: x | AP8: x2
E9: =E10^2 -> 1 | F9: =F10^2 -> 4 | G9: =G10^2 -> 25 | H9: =H10^2 -> 100 | I9: =I10^2 -> 225 | K9: b | L9: a | M9: c | X9: =X10^2 -> 1 | Y9: =Y10^2 -> 4 | Z9: 25 | AA9: 100 | AB9: 225 | AD9: b | AE9: a | AF9: c | AO9: b | AP9: a | AQ9: c
E10: 1 | F10: 2 | G10: 5 | H10: 10 | I10: 15 | X10: 1 | Y10: 2 | Z10: 5 | AA10: 10 | AB10: 15
B11: 1 | C11: =D11 -> Apples | D11: Apples | E11: 1.04007 | F11: 2.066727 | G11: 5.082612 | H11: 9.962387 | I11: 14.720551 | K11: =LINEST(E11:I11,$E$9:$I$10,TRUE,TRUE) -> 1.024893502 | L11: -0.003025927836 | M11: 0.02501316227 | O11: =B11&" "&C11 -> 1 Apples | Q11: ="a1fj_1_"&$C11 -> a1fj_1_Apples | R11: ="a1fj_2_"&$C11 -> a1fj_2_Apples | S11: ="a1fj_5_"&$C11 -> a1fj_5_Apples | T11: ="a1fj_10_"&$C11 -> a1fj_10_Apples | U11: ="a1fj_15_"&$C11 -> a1fj_15_Apples | X11: 0.645061 | Y11: 1.280129 | Z11: 3.131144 | AA11: 6.062695 | AB11: 8.836746 | AD11: =LINEST(X11:AB11,$X$9:$AB$10,TRUE,TRUE) -> 0.6402881145 | AE11: -0.003470205589 | AF11: 0.01163804131 | AH11: ="a1fvj_1_"&$C11 -> a1fvj_1_Apples | AI11: ="a1fvj_2_"&$C11 -> a1fvj_2_Apples | AJ11: ="a1fvj_5_"&$C11 -> a1fvj_5_Apples | AK11: ="a1fvj_10_"&$C11 -> a1fvj_10_Apples | AL11: ="a1fvj_15_"&$C11 -> a1fvj_15_Apples | AO11: =IF('Adoption profile'!$C$3=Sets!$B$3,'prod sims'!K11,'prod sims'!AD11) -> 1.024893502 | AP11: =IF('Adoption profile'!$C$3=Sets!$B$3,'prod sims'!L11,'prod sims'!AE11) -> -0.003025927836 | AQ11: =IF('Adoption profile'!$C$3=Sets!$B$3,'prod sims'!M11,'prod sims'!AF11) -> 0.02501316227
B12: 2 | C12: Pears_nec | D12: Pears and nashis | E12: 1.016254 | F12: 2.036123 | G12: 5.122714 | H12: 10.385725 | I12: 15.841612 | K12: =LINEST(E12:I12,$E$9:$I$10,TRUE,TRUE) -> 1.003332499 | L12: 0.003448871813 | M12: 0.01362120834 | O12: =B12&" "&C12 -> 2 Pears_nec | Q12: a1fj_1_Pears_nec | R12: a1fj_2_Pears_nec | S12: a1fj_5_Pears_nec | T12: a1fj_10_Pears_nec | U12: ="a1fj_15_"&$C12 -> a1fj_15_Pears_nec | X12: 0.628246 | Y12: 1.25326 | Z12: 3.110385 | AA12: 6.153567 | AB12: 9.143124 | AD12: =LINEST(X12:AB12,$X$9:$AB$10,TRUE,TRUE) -> 0.6269327761 | AE12: -0.00117756098 | AF12: 0.003566907242 | AH12: ="a1fvj_1_"&$C12 -> a1fvj_1_Pears_nec | AI12: ="a1fvj_2_"&$C12 -> a1fvj_2_Pears_nec | AJ12: ="a1fvj_5_"&$C12 -> a1fvj_5_Pears_nec | AK12: ="a1fvj_10_"&$C12 -> a1fvj_10_Pears_nec | AL12: ="a1fvj_15_"&$C12 -> a1fvj_15_Pears_nec | AO12: =IF('Adoption profile'!$C$3=Sets!$B$3,'prod sims'!K12,'prod sims'!AD12) -> 1.003332499 | AP12: =IF('Adoption profile'!$C$3=Sets!$B$3,'prod sims'!L12,'prod sims'!AE12) -> 0.003448871813 | AQ12: =IF('Adoption profile'!$C$3=Sets!$B$3,'prod sims'!M12,'prod sims'!AF12) -> 0.01362120834
B13: 3 | C13: =D13 -> Summerfruit | D13: Summerfruit | E13: 2.278454 | F13: 4.532505 | G13: 11.197729 | H13: 22.122375 | I13: 33.346489 | K13: =LINEST(E13:I13,$E$9:$I$10,TRUE,TRUE) -> 2.193334483 | L13: 0.001327728388 | M13: 0.1252340945 | O13: =B13&" "&C13 -> 3 Summerfruit | Q13: a1fj_1_Summerfruit | R13: a1fj_2_Summerfruit | S13: a1fj_5_Summerfruit | T13: a1fj_10_Summerfruit | U13: a1fj_15_Summerfruit | X13: 1.013764 | Y13: 2.012251 | Z13: 4.923591 | AA13: 9.533875 | AB13: 13.896346 | AD13: =LINEST(X13:AB13,$X$9:$AB$10,TRUE,TRUE) -> 1.007008712 | AE13: -0.005460892185 | AF13: 0.01743124659 | AH13: a1fvj_1_Summerfruit | AI13: a1fvj_2_Summerfruit | AJ13: a1fvj_5_Summerfruit | AK13: a1fvj_10_Summerfruit | AL13: a1fvj_15_Summerfruit | AO13: =IF('Adoption profile'!$C$3=Sets!$B$3,'prod sims'!K13,'prod sims'!AD13) -> 2.193334483 | AP13: =IF('Adoption profile'!$C$3=Sets!$B$3,'prod sims'!L13,'prod sims'!AE13) -> 0.001327728388 | AQ13: =IF('Adoption profile'!$C$3=Sets!$B$3,'prod sims'!M13,'prod sims'!AF13) -> 0.1252340945
B14: 4 | C14: Cherries | D14: Cherries | E14: 1.826378 | F14: 3.63574 | G14: 8.991453 | H14: 17.761778 | I14: 26.443363 | K14: =LINEST(E14:I14,$E$9:$I$10,TRUE,TRUE) -> 1.801499838 | L14: -0.002765433517 | M14: 0.03818924774 | O14: 4 Cherries | Q14: a1fj_1_Cherries | R14: a1fj_2_Cherries | S14: a1fj_5_Cherries | T14: a1fj_10_Cherries | U14: a1fj_15_Cherries | X14: 1.147538 | Y14: 2.280471 | Z14: 5.601114 | AA14: 10.924426 | AB14: 16.055346 | AD14: =LINEST(X14:AB14,$X$9:$AB$10,TRUE,TRUE) -> 1.136242949 | AE14: -0.004507266643 | AF14: 0.02259147084 | AH14: a1fvj_1_Cherries | AI14: a1fvj_2_Cherries | AJ14: a1fvj_5_Cherries | AK14: a1fvj_10_Cherries | AL14: a1fvj_15_Cherries | AO14: =IF('Adoption profile'!$C$3=Sets!$B$3,'prod sims'!K14,'prod sims'!AD14) -> 1.801499838 | AP14: =IF('Adoption profile'!$C$3=Sets!$B$3,'prod sims'!L14,'prod sims'!AE14) -> -0.002765433517 | AQ14: =IF('Adoption profile'!$C$3=Sets!$B$3,'prod sims'!M14,'prod sims'!AF14) -> 0.03818924774
B15: 5 | C15: Strawberries | D15: Strawberries | E15: 1.476254 | F15: 2.961632 | G15: 7.472383 | H15: 15.171593 | I15: 23.095741 | K15: =LINEST(E15:I15,$E$9:$I$10,TRUE,TRUE) -> 1.472043164 | L15: 0.004513839391 | M15: -0.0004468781091 | O15: 5 Strawberries | Q15: a1fj_1_Strawberries | R15: a1fj_2_Strawberries | S15: a1fj_5_Strawberries | T15: a1fj_10_Strawberries | U15: a1fj_15_Strawberries | X15: 0.708926 | Y15: 1.412905 | Z15: 3.4956 | AA15: 6.871941 | AB15: 10.134359 | AD15: =LINEST(X15:AB15,$X$9:$AB$10,TRUE,TRUE) -> 0.7103267466 | AE15: -0.002320370838 | AF15: 0.001336001849 | AH15: a1fvj_1_Strawberries | AI15: a1fvj_2_Strawberries | AJ15: a1fvj_5_Strawberries | AK15: a1fvj_10_Strawberries | AL15: a1fvj_15_Strawberries | AO15: =IF('Adoption profile'!$C$3=Sets!$B$3,'prod sims'!K15,'prod sims'!AD15) -> 1.472043164 | AP15: =IF('Adoption profile'!$C$3=Sets!$B$3,'prod sims'!L15,'prod sims'!AE15) -> 0.004513839391 | AQ15: =IF('Adoption profile'!$C$3=Sets!$B$3,'prod sims'!M15,'prod sims'!AF15) -> -0.0004468781091
B16: 6 | C16: Rubus | D16: Rubus | E16: 0.695696 | F16: 1.381429 | G16: 3.382912 | H16: 6.554968 | I16: 9.556444 | K16: =LINEST(E16:I16,$E$9:$I$10,TRUE,TRUE) -> 0.6921686296 | L16: -0.003724674691 | M16: 0.01042874772 | O16: 6 Rubus | Q16: a1fj_1_Rubus | R16: a1fj_2_Rubus | S16: a1fj_5_Rubus | T16: a1fj_10_Rubus | U16: a1fj_15_Rubus | X16: 0.41877 | Y16: 0.831066 | Z16: 2.031047 | AA16: 3.918544 | AB16: 5.682045 | AD16: =LINEST(X16:AB16,$X$9:$AB$10,TRUE,TRUE) -> 0.4178984348 | AE16: -0.002632099932 | AF16: 0.005043825584 | AH16: a1fvj_1_Rubus | AI16: a1fvj_2_Rubus | AJ16: a1fvj_5_Rubus | AK16: a1fvj_10_Rubus | AL16: a1fvj_15_Rubus | AO16: =IF('Adoption profile'!$C$3=Sets!$B$3,'prod sims'!K16,'prod sims'!AD16) -> 0.6921686296 | AP16: =IF('Adoption profile'!$C$3=Sets!$B$3,'prod sims'!L16,'prod sims'!AE16) -> -0.003724674691 | AQ16: =IF('Adoption profile'!$C$3=Sets!$B$3,'prod sims'!M16,'prod sims'!AF16) -> 0.01042874772
B17: 7 | C17: Kiwifruit | D17: Kiwi fruit | E17: 3.904906 | F17: 7.88931 | G17: 20.305027 | H17: 42.437805 | I17: 66.154205 | K17: =LINEST(E17:I17,$E$9:$I$10,TRUE,TRUE) -> 3.910460234 | L17: 0.03362067043 | M17: -0.05785454229 | O17: 7 Kiwifruit | Q17: a1fj_1_Kiwifruit | R17: a1fj_2_Kiwifruit | S17: a1fj_5_Kiwifruit | T17: a1fj_10_Kiwifruit | U17: a1fj_15_Kiwifruit | X17: 1.652549 | Y17: 3.302289 | Z17: 8.232185 | AA17: 16.371048 | AB17: 24.392227 | AD17: =LINEST(X17:AB17,$X$9:$AB$10,TRUE,TRUE) -> 1.659094179 | AE17: -0.00216424337 | AF17: -0.006300701182 | AH17: a1fvj_1_Kiwifruit | AI17: a1fvj_2_Kiwifruit | AJ17: a1fvj_5_Kiwifruit | AK17: a1fvj_10_Kiwifruit | AL17: a1fvj_15_Kiwifruit | AO17: =IF('Adoption profile'!$C$3=Sets!$B$3,'prod sims'!K17,'prod sims'!AD17) -> 3.910460234 | AP17: =IF('Adoption profile'!$C$3=Sets!$B$3,'prod sims'!L17,'prod sims'!AE17) -> 0.03362067043 | AQ17: =IF('Adoption profile'!$C$3=Sets!$B$3,'prod sims'!M17,'prod sims'!AF17) -> -0.05785454229
B18: 8 | C18: Oranges | D18: Oranges | E18: 2.247523 | F18: 4.519647 | G18: 11.487701 | H18: 23.630508 | I18: 36.475822 | K18: =LINEST(E18:I18,$E$9:$I$10,TRUE,TRUE) -> 2.225631493 | L18: 0.01367828464 | M18: 0.01191413528 | O18: 8 Oranges | Q18: a1fj_1_Oranges | R18: a1fj_2_Oranges | S18: a1fj_5_Oranges | T18: a1fj_10_Oranges | U18: a1fj_15_Oranges | X18: 0.950505 | Y18: 1.895921 | Z18: 4.702236 | AA18: 9.282954 | AB18: 13.748619 | AD18: =LINEST(X18:AB18,$X$9:$AB$10,TRUE,TRUE) -> 0.9517234818 | AE18: -0.002351643906 | AF18: 0.001638737567 | AH18: a1fvj_1_Oranges | AI18: a1fvj_2_Oranges | AJ18: a1fvj_5_Oranges | AK18: a1fvj_10_Oranges | AL18: a1fvj_15_Oranges | AO18: =IF('Adoption profile'!$C$3=Sets!$B$3,'prod sims'!K18,'prod sims'!AD18) -> 2.225631493 | AP18: =IF('Adoption profile'!$C$3=Sets!$B$3,'prod sims'!L18,'prod sims'!AE18) -> 0.01367828464 | AQ18: =IF('Adoption profile'!$C$3=Sets!$B$3,'prod sims'!M18,'prod sims'!AF18) -> 0.01191413528
B19: 9 | C19: Mandarins | D19: Mandarins | E19: 2.196843 | F19: 4.432556 | G19: 11.380835 | H19: 23.810928 | I19: 37.379887 | K19: =LINEST(E19:I19,$E$9:$I$10,TRUE,TRUE) -> 2.159117236 | L19: 0.0220756726 | M19: 0.02266328944 | O19: 9 Mandarins | Q19: a1fj_1_Mandarins | R19: a1fj_2_Mandarins | S19: a1fj_5_Mandarins | T19: a1fj_10_Mandarins | U19: a1fj_15_Mandarins | X19: 1.048257 | Y19: 2.095636 | Z19: 5.232473 | AA19: 10.442412 | AB19: 15.62862 | AD19: =LINEST(X19:AB19,$X$9:$AB$10,TRUE,TRUE) -> 1.048903762 | AE19: -0.0004649625595 | AF19: -0.0002728854298 | AH19: a1fvj_1_Mandarins | AI19: a1fvj_2_Mandarins | AJ19: a1fvj_5_Mandarins | AK19: a1fvj_10_Mandarins | AL19: a1fvj_15_Mandarins | AO19: =IF('Adoption profile'!$C$3=Sets!$B$3,'prod sims'!K19,'prod sims'!AD19) -> 2.159117236 | AP19: =IF('Adoption profile'!$C$3=Sets!$B$3,'prod sims'!L19,'prod sims'!AE19) -> 0.0220756726 | AQ19: =IF('Adoption profile'!$C$3=Sets!$B$3,'prod sims'!M19,'prod sims'!AF19) -> 0.02266328944
B20: 10 | C20: O_citrus | D20: Other citrus | E20: 1.596345 | F20: 3.191307 | G20: 7.969907 | H20: 15.922686 | I20: 23.881126 | K20: =LINEST(E20:I20,$E$9:$I$10,TRUE,TRUE) -> 1.592668316 | L20: -6.781974965e-05 | M20: 0.005478515541 | O20: 10 O_citrus | Q20: a1fj_1_O_citrus | R20: a1fj_2_O_citrus | S20: a1fj_5_O_citrus | T20: a1fj_10_O_citrus | U20: a1fj_15_O_citrus | X20: 0.933508 | Y20: 1.859379 | Z20: 4.593163 | AA20: 9.014602 | AB20: 13.285682 | AD20: =LINEST(X20:AB20,$X$9:$AB$10,TRUE,TRUE) -> 0.9329034756 | AE20: -0.003173975186 | AF20: 0.005456099204 | AH20: a1fvj_1_O_citrus | AI20: a1fvj_2_O_citrus | AJ20: a1fvj_5_O_citrus | AK20: a1fvj_10_O_citrus | AL20: a1fvj_15_O_citrus | AO20: =IF('Adoption profile'!$C$3=Sets!$B$3,'prod sims'!K20,'prod sims'!AD20) -> 1.592668316 | AP20: =IF('Adoption profile'!$C$3=Sets!$B$3,'prod sims'!L20,'prod sims'!AE20) -> -6.781974965e-05 | AQ20: =IF('Adoption profile'!$C$3=Sets!$B$3,'prod sims'!M20,'prod sims'!AF20) -> 0.005478515541
B21: 11 | C21: Grapes_t | D21: Grapes - Table and Other | E21: 3.284701 | F21: 6.649334 | G21: 17.241203 | H21: 36.664883 | I21: 58.497448 | K21: =LINEST(E21:I21,$E$9:$I$10,TRUE,TRUE) -> 3.199539424 | L21: 0.04639666187 | M21: 0.05639060794 | O21: 11 Grapes_t | Q21: a1fj_1_Grapes_t | R21: a1fj_2_Grapes_t | S21: a1fj_5_Grapes_t | T21: a1fj_10_Grapes_t | U21: a1fj_15_Grapes_t | X21: 1.540696 | Y21: 3.083411 | Z21: 7.722774 | AA21: 15.487332 | AB21: 23.283207 | AD21: =LINEST(X21:AB21,$X$9:$AB$10,TRUE,TRUE) -> 1.541785447 | AE21: 0.0007086230902 | AF21: -0.002612192406 | AH21: a1fvj_1_Grapes_t | AI21: a1fvj_2_Grapes_t | AJ21: a1fvj_5_Grapes_t | AK21: a1fvj_10_Grapes_t | AL21: a1fvj_15_Grapes_t | AO21: =IF('Adoption profile'!$C$3=Sets!$B$3,'prod sims'!K21,'prod sims'!AD21) -> 3.199539424 | AP21: =IF('Adoption profile'!$C$3=Sets!$B$3,'prod sims'!L21,'prod sims'!AE21) -> 0.04639666187 | AQ21: =IF('Adoption profile'!$C$3=Sets!$B$3,'prod sims'!M21,'prod sims'!AF21) -> 0.05639060794
B22: 12 | C22: Grapes_d | D22: Grapes - Total Dried | E22: 3.396088 | F22: 6.849433 | G22: 17.540356 | H22: 36.375687 | I22: 56.307388 | K22: =LINEST(E22:I22,$E$9:$I$10,TRUE,TRUE) -> 3.404897211 | L22: 0.02350759159 | M22: -0.04757019871 | O22: 12 Grapes_d | Q22: a1fj_1_Grapes_d | R22: a1fj_2_Grapes_d | S22: a1fj_5_Grapes_d | T22: a1fj_10_Grapes_d | U22: a1fj_15_Grapes_d | X22: 1.595907 | Y22: 3.188663 | Z22: 7.945558 | AA22: 15.789406 | AB22: 23.507435 | AD22: =LINEST(X22:AB22,$X$9:$AB$10,TRUE,TRUE) -> 1.602573406 | AE22: -0.002328928277 | AF22: -0.006236769261 | AH22: a1fvj_1_Grapes_d | AI22: a1fvj_2_Grapes_d | AJ22: a1fvj_5_Grapes_d | AK22: a1fvj_10_Grapes_d | AL22: a1fvj_15_Grapes_d | AO22: =IF('Adoption profile'!$C$3=Sets!$B$3,'prod sims'!K22,'prod sims'!AD22) -> 3.404897211 | AP22: =IF('Adoption profile'!$C$3=Sets!$B$3,'prod sims'!L22,'prod sims'!AE22) -> 0.02350759159 | AQ22: =IF('Adoption profile'!$C$3=Sets!$B$3,'prod sims'!M22,'prod sims'!AF22) -> -0.04757019871
B23: 13 | C23: O_temp_fruit | D23: Other temperate fruit | E23: 4.113651 | F23: 8.326591 | G23: 21.553131 | H23: 45.488182 | I23: 71.617851 | K23: =LINEST(E23:I23,$E$9:$I$10,TRUE,TRUE) -> 4.096818599 | L23: 0.04540280775 | M23: -0.04272090511 | O23: 13 O_temp_fruit | Q23: a1fj_1_O_temp_fruit | R23: a1fj_2_O_temp_fruit | S23: a1fj_5_O_temp_fruit | T23: a1fj_10_O_temp_fruit | U23: a1fj_15_O_temp_fruit | X23: 1.520051 | Y23: 3.037207 | Z23: 7.569567 | AA23: 15.050714 | AB23: 22.426714 | AD23: =LINEST(X23:AB23,$X$9:$AB$10,TRUE,TRUE) -> 1.525040065 | AE23: -0.001972953265 | AF23: -0.004334149781 | AH23: a1fvj_1_O_temp_fruit | AI23: a1fvj_2_O_temp_fruit | AJ23: a1fvj_5_O_temp_fruit | AK23: a1fvj_10_O_temp_fruit | AL23: a1fvj_15_O_temp_fruit | AO23: =IF('Adoption profile'!$C$3=Sets!$B$3,'prod sims'!K23,'prod sims'!AD23) -> 4.096818599 | AP23: =IF('Adoption profile'!$C$3=Sets!$B$3,'prod sims'!L23,'prod sims'!AE23) -> 0.04540280775 | AQ23: =IF('Adoption profile'!$C$3=Sets!$B$3,'prod sims'!M23,'prod sims'!AF23) -> -0.04272090511
B24: 14 | C24: Bananas | D24: Bananas | E24: 1.338901 | F24: 2.681606 | G24: 6.731791 | H24: 13.551414 | I24: 20.450346 | K24: =LINEST(E24:I24,$E$9:$I$10,TRUE,TRUE) -> 1.338725463 | L24: 0.001653038634 | M24: -0.002142198596 | O24: 14 Bananas | Q24: a1fj_1_Bananas | R24: a1fj_2_Bananas | S24: a1fj_5_Bananas | T24: a1fj_10_Bananas | U24: a1fj_15_Bananas | X24: 0.596481 | Y24: 1.187557 | Z24: 2.929065 | AA24: 5.72989 | AB24: 8.410494 | AD24: =LINEST(X24:AB24,$X$9:$AB$10,TRUE,TRUE) -> 0.5975534202 | AE24: -0.002467273065 | AF24: 0.002021213956 | AH24: a1fvj_1_Bananas | AI24: a1fvj_2_Bananas | AJ24: a1fvj_5_Bananas | AK24: a1fvj_10_Bananas | AL24: a1fvj_15_Bananas | AO24: =IF('Adoption profile'!$C$3=Sets!$B$3,'prod sims'!K24,'prod sims'!AD24) -> 1.338725463 | AP24: =IF('Adoption profile'!$C$3=Sets!$B$3,'prod sims'!L24,'prod sims'!AE24) -> 0.001653038634 | AQ24: =IF('Adoption profile'!$C$3=Sets!$B$3,'prod sims'!M24,'prod sims'!AF24) -> -0.002142198596
B25: 15 | C25: Pineapples | D25: Pineapples | E25: 0.489306 | F25: 0.975896 | G25: 2.419765 | H25: 4.775376 | I25: 7.071095 | K25: =LINEST(E25:I25,$E$9:$I$10,TRUE,TRUE) -> 0.4897915498 | L25: -0.001231201953 | M25: 0.001078710089 | O25: 15 Pineapples | Q25: a1fj_1_Pineapples | R25: a1fj_2_Pineapples | S25: a1fj_5_Pineapples | T25: a1fj_10_Pineapples | U25: a1fj_15_Pineapples | X25: 0.099605 | Y25: 0.198018 | Z25: 0.48635 | AA25: 0.945272 | AB25: 1.379416 | AD25: =LINEST(X25:AB25,$X$9:$AB$10,TRUE,TRUE) -> 0.09965299662 | AE25: -0.0005162524173 | AF25: 0.0006763439542 | AH25: a1fvj_1_Pineapples | AI25: a1fvj_2_Pineapples | AJ25: a1fvj_5_Pineapples | AK25: a1fvj_10_Pineapples | AL25: a1fvj_15_Pineapples | AO25: =IF('Adoption profile'!$C$3=Sets!$B$3,'prod sims'!K25,'prod sims'!AD25) -> 0.4897915498 | AP25: =IF('Adoption profile'!$C$3=Sets!$B$3,'prod sims'!L25,'prod sims'!AE25) -> -0.001231201953 | AQ25: =IF('Adoption profile'!$C$3=Sets!$B$3,'prod sims'!M25,'prod sims'!AF25) -> 0.001078710089
B26: 16 | C26: Avocados | D26: Avocados | E26: 2.217307 | F26: 4.431456 | G26: 11.050472 | H26: 21.98402 | I26: 32.773041 | K26: =LINEST(E26:I26,$E$9:$I$10,TRUE,TRUE) -> 2.225733675 | L26: -0.002684127366 | M26: -0.008010015122 | O26: 16 Avocados | Q26: a1fj_1_Avocados | R26: a1fj_2_Avocados | S26: a1fj_5_Avocados | T26: a1fj_10_Avocados | U26: a1fj_15_Avocados | X26: 0.450309 | Y26: 0.895064 | Z26: 2.197121 | AA26: 4.266103 | AB26: 6.218943 | AD26: =LINEST(X26:AB26,$X$9:$AB$10,TRUE,TRUE) -> 0.4506103982 | AE26: -0.002416571389 | AF26: 0.003055940704 | AH26: a1fvj_1_Avocados | AI26: a1fvj_2_Avocados | AJ26: a1fvj_5_Avocados | AK26: a1fvj_10_Avocados | AL26: a1fvj_15_Avocados | AO26: =IF('Adoption profile'!$C$3=Sets!$B$3,'prod sims'!K26,'prod sims'!AD26) -> 2.225733675 | AP26: =IF('Adoption profile'!$C$3=Sets!$B$3,'prod sims'!L26,'prod sims'!AE26) -> -0.002684127366 | AQ26: =IF('Adoption profile'!$C$3=Sets!$B$3,'prod sims'!M26,'prod sims'!AF26) -> -0.008010015122
B27: 17 | C27: Mangos | D27: Mangoes | E27: 0.923123 | F27: 1.845734 | G27: 4.611706 | H27: 9.225135 | I27: 13.857198 | K27: =LINEST(E27:I27,$E$9:$I$10,TRUE,TRUE) -> 0.9198631545 | L27: 0.0002410446019 | M27: 0.004368213812 | O27: 17 Mangos | Q27: a1fj_1_Mangos | R27: a1fj_2_Mangos | S27: a1fj_5_Mangos | T27: a1fj_10_Mangos | U27: a1fj_15_Mangos | X27: 0.18744 | Y27: 0.372579 | Z27: 0.914718 | AA27: 1.776826 | AB27: 2.591685 | AD27: =LINEST(X27:AB27,$X$9:$AB$10,TRUE,TRUE) -> 0.18747607 | AE27: -0.0009868100678 | AF27: 0.001371052675 | AH27: a1fvj_1_Mangos | AI27: a1fvj_2_Mangos | AJ27: a1fvj_5_Mangos | AK27: a1fvj_10_Mangos | AL27: a1fvj_15_Mangos | AO27: =IF('Adoption profile'!$C$3=Sets!$B$3,'prod sims'!K27,'prod sims'!AD27) -> 0.9198631545 | AP27: =IF('Adoption profile'!$C$3=Sets!$B$3,'prod sims'!L27,'prod sims'!AE27) -> 0.0002410446019 | AQ27: =IF('Adoption profile'!$C$3=Sets!$B$3,'prod sims'!M27,'prod sims'!AF27) -> 0.004368213812
B28: 18 | C28: Melons | D28: Melons | E28: 0.616295 | F28: 1.234476 | G28: 3.100893 | H28: 6.254214 | I28: 9.465468 | K28: =LINEST(E28:I28,$E$9:$I$10,TRUE,TRUE) -> 0.6141829583 | L28: 0.001115921752 | M28: 0.001431230527 | O28: 18 Melons | Q28: a1fj_1_Melons | R28: a1fj_2_Melons | S28: a1fj_5_Melons | T28: a1fj_10_Melons | U28: a1fj_15_Melons | X28: 0.236018 | Y28: 0.469506 | Z28: 1.155232 | AA28: 2.25145 | AB28: 3.293434 | AD28: =LINEST(X28:AB28,$X$9:$AB$10,TRUE,TRUE) -> 0.2362998843 | AE28: -0.001122053612 | AF28: 0.001214570178 | AH28: a1fvj_1_Melons | AI28: a1fvj_2_Melons | AJ28: a1fvj_5_Melons | AK28: a1fvj_10_Melons | AL28: a1fvj_15_Melons | AO28: =IF('Adoption profile'!$C$3=Sets!$B$3,'prod sims'!K28,'prod sims'!AD28) -> 0.6141829583 | AP28: =IF('Adoption profile'!$C$3=Sets!$B$3,'prod sims'!L28,'prod sims'!AE28) -> 0.001115921752 | AQ28: =IF('Adoption profile'!$C$3=Sets!$B$3,'prod sims'!M28,'prod sims'!AF28) -> 0.001431230527
B29: 19 | C29: O_tro_fruit | D29: Other tropical fruit | E29: 0.473769 | F29: 0.945092 | G29: 2.34487 | H29: 4.633099 | I29: 6.869563 | K29: =LINEST(E29:I29,$E$9:$I$10,TRUE,TRUE) -> 0.4739748372 | L29: -0.001073316467 | M29: 0.001250143453 | O29: 19 O_tro_fruit | Q29: a1fj_1_O_tro_fruit | R29: a1fj_2_O_tro_fruit | S29: a1fj_5_O_tro_fruit | T29: a1fj_10_O_tro_fruit | U29: a1fj_15_O_tro_fruit | X29: 0.096479 | Y29: 0.191911 | Z29: 0.472133 | AA29: 0.920086 | AB29: 1.34608 | AD29: =LINEST(X29:AB29,$X$9:$AB$10,TRUE,TRUE) -> 0.09654305697 | AE29: -0.000456522999 | AF29: 0.000566756949 | AH29: a1fvj_1_O_tro_fruit | AI29: a1fvj_2_O_tro_fruit | AJ29: a1fvj_5_O_tro_fruit | AK29: a1fvj_10_O_tro_fruit | AL29: a1fvj_15_O_tro_fruit | AO29: =IF('Adoption profile'!$C$3=Sets!$B$3,'prod sims'!K29,'prod sims'!AD29) -> 0.4739748372 | AP29: =IF('Adoption profile'!$C$3=Sets!$B$3,'prod sims'!L29,'prod sims'!AE29) -> -0.001073316467 | AQ29: =IF('Adoption profile'!$C$3=Sets!$B$3,'prod sims'!M29,'prod sims'!AF29) -> 0.001250143453
B30: 20 | C30: Olives | D30: Olives | E30: 3.232263 | F30: 6.454003 | G30: 16.019911 | H30: 31.458797 | I30: 46.065491 | K30: =LINEST(E30:I30,$E$9:$I$10,TRUE,TRUE) -> 3.297627647 | L30: -0.01474857946 | M30: -0.07110032573 | O30: 20 Olives | Q30: a1fj_1_Olives | R30: a1fj_2_Olives | S30: a1fj_5_Olives | T30: a1fj_10_Olives | U30: a1fj_15_Olives | X30: 1.295321 | Y30: 2.578265 | Z30: 6.35255 | AA30: 12.394831 | AB30: 18.131123 | AD30: =LINEST(X30:AB30,$X$9:$AB$10,TRUE,TRUE) -> 1.301025921 | AE30: -0.006156414734 | AF30: 0.0007523697765 | AH30: a1fvj_1_Olives | AI30: a1fvj_2_Olives | AJ30: a1fvj_5_Olives | AK30: a1fvj_10_Olives | AL30: a1fvj_15_Olives | AO30: =IF('Adoption profile'!$C$3=Sets!$B$3,'prod sims'!K30,'prod sims'!AD30) -> 3.297627647 | AP30: =IF('Adoption profile'!$C$3=Sets!$B$3,'prod sims'!L30,'prod sims'!AE30) -> -0.01474857946 | AQ30: =IF('Adoption profile'!$C$3=Sets!$B$3,'prod sims'!M30,'prod sims'!AF30) -> -0.07110032573
B31: 21 | C31: Macadamia | D31: Macadamia | E31: 3.468277 | F31: 6.948346 | G31: 17.514927 | H31: 35.737778 | I31: 54.909245 | K31: =LINEST(E31:I31,$E$9:$I$10,TRUE,TRUE) -> 3.396876249 | L31: 0.01721424556 | M31: 0.07411992411 | O31: 21 Macadamia | Q31: a1fj_1_Macadamia | R31: a1fj_2_Macadamia | S31: a1fj_5_Macadamia | T31: a1fj_10_Macadamia | U31: a1fj_15_Macadamia | X31: 1.115018 | Y31: 2.220432 | Z31: 5.483169 | AA31: 10.762102 | AB31: 15.868218 | AD31: =LINEST(X31:AB31,$X$9:$AB$10,TRUE,TRUE) -> 1.112681601 | AE31: -0.003696627915 | AF31: 0.008549815027 | AH31: a1fvj_1_Macadamia | AI31: a1fvj_2_Macadamia | AJ31: a1fvj_5_Macadamia | AK31: a1fvj_10_Macadamia | AL31: a1fvj_15_Macadamia | AO31: =IF('Adoption profile'!$C$3=Sets!$B$3,'prod sims'!K31,'prod sims'!AD31) -> 3.396876249 | AP31: =IF('Adoption profile'!$C$3=Sets!$B$3,'prod sims'!L31,'prod sims'!AE31) -> 0.01721424556 | AQ31: =IF('Adoption profile'!$C$3=Sets!$B$3,'prod sims'!M31,'prod sims'!AF31) -> 0.07411992411
B32: 22 | C32: Almonds | D32: Almonds | E32: 3.396409 | F32: 6.881111 | G32: 17.886524 | H32: 38.190689 | I32: 61.162415 | K32: =LINEST(E32:I32,$E$9:$I$10,TRUE,TRUE) -> 3.301836801 | L32: 0.0513892798 | M32: 0.06266784495 | O32: 22 Almonds | Q32: a1fj_1_Almonds | R32: a1fj_2_Almonds | S32: a1fj_5_Almonds | T32: a1fj_10_Almonds | U32: a1fj_15_Almonds | X32: 1.096915 | Y32: 2.197299 | Z32: 5.519363 | AA32: 11.126481 | AB32: 16.822182 | AD32: =LINEST(X32:AB32,$X$9:$AB$10,TRUE,TRUE) -> 1.094978867 | AE32: 0.001765458681 | AF32: 0.0002399141005 | AH32: a1fvj_1_Almonds | AI32: a1fvj_2_Almonds | AJ32: a1fvj_5_Almonds | AK32: a1fvj_10_Almonds | AL32: a1fvj_15_Almonds | AO32: =IF('Adoption profile'!$C$3=Sets!$B$3,'prod sims'!K32,'prod sims'!AD32) -> 3.301836801 | AP32: =IF('Adoption profile'!$C$3=Sets!$B$3,'prod sims'!L32,'prod sims'!AE32) -> 0.0513892798 | AQ32: =IF('Adoption profile'!$C$3=Sets!$B$3,'prod sims'!M32,'prod sims'!AF32) -> 0.06266784495
B33: 23 | C33: Othernuts | D33: Other nuts | E33: 3.598996 | F33: 7.285978 | G33: 18.878723 | H33: 39.984764 | I33: 63.317574 | K33: =LINEST(E33:I33,$E$9:$I$10,TRUE,TRUE) -> 3.552652946 | L33: 0.04455955763 | M33: 0.001968965377 | O33: 23 Othernuts | Q33: a1fj_1_Othernuts | R33: a1fj_2_Othernuts | S33: a1fj_5_Othernuts | T33: a1fj_10_Othernuts | U33: a1fj_15_Othernuts | X33: 1.241529 | Y33: 2.487906 | Z33: 6.255589 | AA33: 12.62725 | AB33: 19.108738 | AD33: =LINEST(X33:AB33,$X$9:$AB$10,TRUE,TRUE) -> 1.240349729 | AE33: 0.002245703612 | AF33: -0.001550765825 | AH33: a1fvj_1_Othernuts | AI33: a1fvj_2_Othernuts | AJ33: a1fvj_5_Othernuts | AK33: a1fvj_10_Othernuts | AL33: a1fvj_15_Othernuts | AO33: =IF('Adoption profile'!$C$3=Sets!$B$3,'prod sims'!K33,'prod sims'!AD33) -> 3.552652946 | AP33: =IF('Adoption profile'!$C$3=Sets!$B$3,'prod sims'!L33,'prod sims'!AE33) -> 0.04455955763 | AQ33: =IF('Adoption profile'!$C$3=Sets!$B$3,'prod sims'!M33,'prod sims'!AF33) -> 0.001968965377
B34: 24 | C34: Potatoes | D34: Potatoes | E34: 1.02442 | F34: 2.040417 | G34: 5.037398 | H34: 9.864513 | I34: 14.496817 | K34: =LINEST(E34:I34,$E$9:$I$10,TRUE,TRUE) -> 1.026615708 | L34: -0.004026581315 | M34: 0.002936601022 | O34: 24 Potatoes | Q34: a1fj_1_Potatoes | R34: a1fj_2_Potatoes | S34: a1fj_5_Potatoes | T34: a1fj_10_Potatoes | U34: a1fj_15_Potatoes | X34: 0.449731 | Y34: 0.893236 | Z34: 2.187565 | AA34: 4.23094 | AB34: 6.143599 | AD34: =LINEST(X34:AB34,$X$9:$AB$10,TRUE,TRUE) -> 0.4501124195 | AE34: -0.00271998133 | AF34: 0.003390905481 | AH34: a1fvj_1_Potatoes | AI34: a1fvj_2_Potatoes | AJ34: a1fvj_5_Potatoes | AK34: a1fvj_10_Potatoes | AL34: a1fvj_15_Potatoes | AO34: =IF('Adoption profile'!$C$3=Sets!$B$3,'prod sims'!K34,'prod sims'!AD34) -> 1.026615708 | AP34: =IF('Adoption profile'!$C$3=Sets!$B$3,'prod sims'!L34,'prod sims'!AE34) -> -0.004026581315 | AQ34: =IF('Adoption profile'!$C$3=Sets!$B$3,'prod sims'!M34,'prod sims'!AF34) -> 0.002936601022
B35: 25 | C35: Carrots | D35: Carrots | E35: 1.722212 | F35: 3.487087 | G35: 9.045779 | H35: 19.237656 | I35: 30.670269 | K35: =LINEST(E35:I35,$E$9:$I$10,TRUE,TRUE) -> 1.681781147 | L35: 0.02407187574 | M35: 0.02374185324 | O35: 25 Carrots | Q35: a1fj_1_Carrots | R35: a1fj_2_Carrots | S35: a1fj_5_Carrots | T35: a1fj_10_Carrots | U35: a1fj_15_Carrots | X35: 0.648269 | Y35: 1.294829 | Z35: 3.22399 | AA35: 6.402712 | AB35: 9.533512 | AD35: =LINEST(X35:AB35,$X$9:$AB$10,TRUE,TRUE) -> 0.6496879986 | AE35: -0.0009378465433 | AF35: -0.0006912864192 | AH35: a1fvj_1_Carrots | AI35: a1fvj_2_Carrots | AJ35: a1fvj_5_Carrots | AK35: a1fvj_10_Carrots | AL35: a1fvj_15_Carrots | AO35: =IF('Adoption profile'!$C$3=Sets!$B$3,'prod sims'!K35,'prod sims'!AD35) -> 1.681781147 | AP35: =IF('Adoption profile'!$C$3=Sets!$B$3,'prod sims'!L35,'prod sims'!AE35) -> 0.02407187574 | AQ35: =IF('Adoption profile'!$C$3=Sets!$B$3,'prod sims'!M35,'prod sims'!AF35) -> 0.02374185324
B36: 26 | C36: Onions | D36: Onions | E36: 1.058768 | F36: 2.136569 | G36: 5.490231 | H36: 11.514686 | I36: 18.139523 | K36: =LINEST(E36:I36,$E$9:$I$10,TRUE,TRUE) -> 1.035658057 | L36: 0.0114902827 | M36: 0.01680214961 | O36: 26 Onions | Q36: a1fj_1_Onions | R36: a1fj_2_Onions | S36: a1fj_5_Onions | T36: a1fj_10_Onions | U36: a1fj_15_Onions | X36: 0.467133 | Y36: 0.932841 | Z36: 2.321586 | AA36: 4.609071 | AB36: 6.863777 | AD36: =LINEST(X36:AB36,$X$9:$AB$10,TRUE,TRUE) -> 0.4675426351 | AE36: -0.0006656658994 | AF36: 0.0003624870826 | AH36: a1fvj_1_Onions | AI36: a1fvj_2_Onions | AJ36: a1fvj_5_Onions | AK36: a1fvj_10_Onions | AL36: a1fvj_15_Onions | AO36: =IF('Adoption profile'!$C$3=Sets!$B$3,'prod sims'!K36,'prod sims'!AD36) -> 1.035658057 | AP36: =IF('Adoption profile'!$C$3=Sets!$B$3,'prod sims'!L36,'prod sims'!AE36) -> 0.0114902827 | AQ36: =IF('Adoption profile'!$C$3=Sets!$B$3,'prod sims'!M36,'prod sims'!AF36) -> 0.01680214961
B37: 27 | C37: Pumpkins | D37: Pumpkins | E37: 0.533893 | F37: 1.067975 | G37: 2.672313 | H37: 5.347222 | I37: 8.032407 | K37: =LINEST(E37:I37,$E$9:$I$10,TRUE,TRUE) -> 0.5334071226 | L37: 0.0001344089472 | M37: 0.0007319556073 | O37: 27 Pumpkins | Q37: a1fj_1_Pumpkins | R37: a1fj_2_Pumpkins | S37: a1fj_5_Pumpkins | T37: a1fj_10_Pumpkins | U37: a1fj_15_Pumpkins | X37: 0.140374 | Y37: 0.279008 | Z37: 0.684844 | AA37: 1.329711 | AB37: 1.938493 | AD37: =LINEST(X37:AB37,$X$9:$AB$10,TRUE,TRUE) -> 0.1404380809 | AE37: -0.0007520903532 | AF37: 0.0009930808712 | AH37: a1fvj_1_Pumpkins | AI37: a1fvj_2_Pumpkins | AJ37: a1fvj_5_Pumpkins | AK37: a1fvj_10_Pumpkins | AL37: a1fvj_15_Pumpkins | AO37: =IF('Adoption profile'!$C$3=Sets!$B$3,'prod sims'!K37,'prod sims'!AD37) -> 0.5334071226 | AP37: =IF('Adoption profile'!$C$3=Sets!$B$3,'prod sims'!L37,'prod sims'!AE37) -> 0.0001344089472 | AQ37: =IF('Adoption profile'!$C$3=Sets!$B$3,'prod sims'!M37,'prod sims'!AF37) -> 0.0007319556073
B38: 28 | C38: Sweet_corn | D38: Sweet corn | E38: 0.504113 | F38: 1.005132 | G38: 2.490063 | H38: 4.90706 | I38: 7.255952 | K38: =LINEST(E38:I38,$E$9:$I$10,TRUE,TRUE) -> 0.5046481231 | L38: -0.001400952209 | M38: 0.001253994591 | O38: 28 Sweet_corn | Q38: a1fj_1_Sweet_corn | R38: a1fj_2_Sweet_corn | S38: a1fj_5_Sweet_corn | T38: a1fj_10_Sweet_corn | U38: a1fj_15_Sweet_corn | X38: 0.156037 | Y38: 0.309824 | Z38: 0.758191 | AA38: 1.464946 | AB38: 2.125599 | AD38: =LINEST(X38:AB38,$X$9:$AB$10,TRUE,TRUE) -> 0.1560574922 | AE38: -0.0009636856534 | AF38: 0.001361633091 | AH38: a1fvj_1_Sweet_corn | AI38: a1fvj_2_Sweet_corn | AJ38: a1fvj_5_Sweet_corn | AK38: a1fvj_10_Sweet_corn | AL38: a1fvj_15_Sweet_corn | AO38: =IF('Adoption profile'!$C$3=Sets!$B$3,'prod sims'!K38,'prod sims'!AD38) -> 0.5046481231 | AP38: =IF('Adoption profile'!$C$3=Sets!$B$3,'prod sims'!L38,'prod sims'!AE38) -> -0.001400952209 | AQ38: =IF('Adoption profile'!$C$3=Sets!$B$3,'prod sims'!M38,'prod sims'!AF38) -> 0.001253994591
B39: 29 | C39: Pea_bean | D39: Peas and beans | E39: 0.996627 | F39: 1.992858 | G39: 4.979924 | H39: 9.95647 | I39: 14.936814 | K39: =LINEST(E39:I39,$E$9:$I$10,TRUE,TRUE) -> 0.9953519017 | L39: 1.976837046e-05 | M39: 0.001812494653 | O39: 29 Pea_bean | Q39: a1fj_1_Pea_bean | R39: a1fj_2_Pea_bean | S39: a1fj_5_Pea_bean | T39: a1fj_10_Pea_bean | U39: a1fj_15_Pea_bean | X39: 0.455328 | Y39: 0.906713 | Z39: 2.237995 | AA39: 4.384882 | AB39: 6.448925 | AD39: =LINEST(X39:AB39,$X$9:$AB$10,TRUE,TRUE) -> 0.4555874808 | AE39: -0.001721395277 | AF39: 0.002110291179 | AH39: a1fvj_1_Pea_bean | AI39: a1fvj_2_Pea_bean | AJ39: a1fvj_5_Pea_bean | AK39: a1fvj_10_Pea_bean | AL39: a1fvj_15_Pea_bean | AO39: =IF('Adoption profile'!$C$3=Sets!$B$3,'prod sims'!K39,'prod sims'!AD39) -> 0.9953519017 | AP39: =IF('Adoption profile'!$C$3=Sets!$B$3,'prod sims'!L39,'prod sims'!AE39) -> 1.976837046e-05 | AQ39: =IF('Adoption profile'!$C$3=Sets!$B$3,'prod sims'!M39,'prod sims'!AF39) -> 0.001812494653
B40: 30 | C40: Lettuce | D40: Lettuce | E40: 0.468482 | F40: 0.933873 | G40: 2.311986 | H40: 4.551339 | I40: 6.7234 | K40: =LINEST(E40:I40,$E$9:$I$10,TRUE,TRUE) -> 0.4689382969 | L40: -0.001387679751 | M40: 0.001348502505 | O40: 30 Lettuce | Q40: a1fj_1_Lettuce | R40: a1fj_2_Lettuce | S40: a1fj_5_Lettuce | T40: a1fj_10_Lettuce | U40: a1fj_15_Lettuce | X40: 0.120667 | Y40: 0.239487 | Z40: 0.585301 | AA40: 1.128571 | AB40: 1.634379 | AD40: =LINEST(X40:AB40,$X$9:$AB$10,TRUE,TRUE) -> 0.1206425368 | AE40: -0.000784897529 | AF40: 0.001167981736 | AH40: a1fvj_1_Lettuce | AI40: a1fvj_2_Lettuce | AJ40: a1fvj_5_Lettuce | AK40: a1fvj_10_Lettuce | AL40: a1fvj_15_Lettuce | AO40: =IF('Adoption profile'!$C$3=Sets!$B$3,'prod sims'!K40,'prod sims'!AD40) -> 0.4689382969 | AP40: =IF('Adoption profile'!$C$3=Sets!$B$3,'prod sims'!L40,'prod sims'!AE40) -> -0.001387679751 | AQ40: =IF('Adoption profile'!$C$3=Sets!$B$3,'prod sims'!M40,'prod sims'!AF40) -> 0.001348502505
B41: 31 | C41: Broccoli | D41: Broccoli | E41: 0.777937 | F41: 1.560367 | G41: 3.936862 | H41: 8.008465 | I41: 12.242357 | K41: =LINEST(E41:I41,$E$9:$I$10,TRUE,TRUE) -> 0.7701935157 | L41: 0.003029046557 | M41: 0.006858090665 | O41: 31 Broccoli | Q41: a1fj_1_Broccoli | R41: a1fj_2_Broccoli | S41: a1fj_5_Broccoli | T41: a1fj_10_Broccoli | U41: a1fj_15_Broccoli | X41: 0.247214 | Y41: 0.491857 | Z41: 1.21085 | AA41: 2.362127 | AB41: 3.459098 | AD41: =LINEST(X41:AB41,$X$9:$AB$10,TRUE,TRUE) -> 0.2474127097 | AE41: -0.001127271178 | AF41: 0.001341569578 | AH41: a1fvj_1_Broccoli | AI41: a1fvj_2_Broccoli | AJ41: a1fvj_5_Broccoli | AK41: a1fvj_10_Broccoli | AL41: a1fvj_15_Broccoli | AO41: =IF('Adoption profile'!$C$3=Sets!$B$3,'prod sims'!K41,'prod sims'!AD41) -> 0.7701935157 | AP41: =IF('Adoption profile'!$C$3=Sets!$B$3,'prod sims'!L41,'prod sims'!AE41) -> 0.003029046557 | AQ41: =IF('Adoption profile'!$C$3=Sets!$B$3,'prod sims'!M41,'prod sims'!AF41) -> 0.006858090665
B42: 32 | C42: Cauliflower | D42: Cauliflower | E42: 0.45332 | F42: 0.903607 | G42: 2.236765 | H42: 4.40245 | I42: 6.502472 | K42: =LINEST(E42:I42,$E$9:$I$10,TRUE,TRUE) -> 0.4537277297 | L42: -0.001355659241 | M42: 0.001371590041 | O42: 32 Cauliflower | Q42: a1fj_1_Cauliflower | R42: a1fj_2_Cauliflower | S42: a1fj_5_Cauliflower | T42: a1fj_10_Cauliflower | U42: a1fj_15_Cauliflower | X42: 0.187065 | Y42: 0.37152 | Z42: 0.909781 | AA42: 1.759657 | AB42: 2.555601 | AD42: =LINEST(X42:AB42,$X$9:$AB$10,TRUE,TRUE) -> 0.1871360234 | AE42: -0.00112529354 | AF42: 0.001522887035 | AH42: a1fvj_1_Cauliflower | AI42: a1fvj_2_Cauliflower | AJ42: a1fvj_5_Cauliflower | AK42: a1fvj_10_Cauliflower | AL42: a1fvj_15_Cauliflower | AO42: =IF('Adoption profile'!$C$3=Sets!$B$3,'prod sims'!K42,'prod sims'!AD42) -> 0.4537277297 | AP42: =IF('Adoption profile'!$C$3=Sets!$B$3,'prod sims'!L42,'prod sims'!AE42) -> -0.001355659241 | AQ42: =IF('Adoption profile'!$C$3=Sets!$B$3,'prod sims'!M42,'prod sims'!AF42) -> 0.001371590041
B43: 33 | C43: Capsicum_nec | D43: Capsicums; Chillies & Peppers | E43: 0.586349 | F43: 1.167134 | G43: 2.877967 | H43: 5.634362 | I43: 8.287703 | K43: =LINEST(E43:I43,$E$9:$I$10,TRUE,TRUE) -> 0.5852228359 | L43: -0.002205057747 | M43: 0.00479138335 | O43: 33 Capsicum_nec | Q43: a1fj_1_Capsicum_nec | R43: a1fj_2_Capsicum_nec | S43: a1fj_5_Capsicum_nec | T43: a1fj_10_Capsicum_nec | U43: a1fj_15_Capsicum_nec | X43: 0.231955 | Y43: 0.460378 | Z43: 1.125321 | AA43: 2.170596 | AB43: 3.144856 | AD43: =LINEST(X43:AB43,$X$9:$AB$10,TRUE,TRUE) -> 0.2318405088 | AE43: -0.00149072087 | AF43: 0.002315023824 | AH43: a1fvj_1_Capsicum_nec | AI43: a1fvj_2_Capsicum_nec | AJ43: a1fvj_5_Capsicum_nec | AK43: a1fvj_10_Capsicum_nec | AL43: a1fvj_15_Capsicum_nec | AO43: =IF('Adoption profile'!$C$3=Sets!$B$3,'prod sims'!K43,'prod sims'!AD43) -> 0.5852228359 | AP43: =IF('Adoption profile'!$C$3=Sets!$B$3,'prod sims'!L43,'prod sims'!AE43) -> -0.002205057747 | AQ43: =IF('Adoption profile'!$C$3=Sets!$B$3,'prod sims'!M43,'prod sims'!AF43) -> 0.00479138335
B44: 34 | C44: Tomato_p | D44: Tomatoes - processing | E44: 0.556144 | F44: 1.101176 | G44: 2.672515 | H44: 5.095156 | I44: 7.298847 | K44: =LINEST(E44:I44,$E$9:$I$10,TRUE,TRUE) -> 0.5552894515 | L44: -0.004620363596 | M44: 0.007903035273 | O44: 34 Tomato_p | Q44: a1fj_1_Tomato_p | R44: a1fj_2_Tomato_p | S44: a1fj_5_Tomato_p | T44: a1fj_10_Tomato_p | U44: a1fj_15_Tomato_p | X44: 0.198962 | Y44: 0.395091 | Z44: 0.967126 | AA44: 1.86956 | AB44: 2.714077 | AD44: =LINEST(X44:AB44,$X$9:$AB$10,TRUE,TRUE) -> 0.1989741843 | AE44: -0.001211225617 | AF44: 0.00173060239 | AH44: a1fvj_1_Tomato_p | AI44: a1fvj_2_Tomato_p | AJ44: a1fvj_5_Tomato_p | AK44: a1fvj_10_Tomato_p | AL44: a1fvj_15_Tomato_p | AO44: =IF('Adoption profile'!$C$3=Sets!$B$3,'prod sims'!K44,'prod sims'!AD44) -> 0.5552894515 | AP44: =IF('Adoption profile'!$C$3=Sets!$B$3,'prod sims'!L44,'prod sims'!AE44) -> -0.004620363596 | AQ44: =IF('Adoption profile'!$C$3=Sets!$B$3,'prod sims'!M44,'prod sims'!AF44) -> 0.007903035273
B45: 35 | C45: Tomato_f | D45: Tomatoes - fresh | E45: 0.364566 | F45: 0.725973 | G45: 1.791758 | H45: 3.509504 | I45: 5.158904 | K45: =LINEST(E45:I45,$E$9:$I$10,TRUE,TRUE) -> 0.3649858444 | L45: -0.001411269092 | M45: 0.001434532418 | O45: 35 Tomato_f | Q45: a1fj_1_Tomato_f | R45: a1fj_2_Tomato_f | S45: a1fj_5_Tomato_f | T45: a1fj_10_Tomato_f | U45: a1fj_15_Tomato_f | X45: 0.132657 | Y45: 0.263281 | Z45: 0.643427 | AA45: 1.240511 | AB45: 1.796224 | AD45: =LINEST(X45:AB45,$X$9:$AB$10,TRUE,TRUE) -> 0.1326447075 | AE45: -0.0008662464739 | AF45: 0.00126843046 | AH45: a1fvj_1_Tomato_f | AI45: a1fvj_2_Tomato_f | AJ45: a1fvj_5_Tomato_f | AK45: a1fvj_10_Tomato_f | AL45: a1fvj_15_Tomato_f | AO45: =IF('Adoption profile'!$C$3=Sets!$B$3,'prod sims'!K45,'prod sims'!AD45) -> 0.3649858444 | AP45: =IF('Adoption profile'!$C$3=Sets!$B$3,'prod sims'!L45,'prod sims'!AE45) -> -0.001411269092 | AQ45: =IF('Adoption profile'!$C$3=Sets!$B$3,'prod sims'!M45,'prod sims'!AF45) -> 0.001434532418
B46: 36 | C46: Asparagus | D46: Asparagus | E46: 2.248023 | F46: 4.500983 | G46: 11.288589 | H46: 22.695831 | I46: 34.226261 | K46: =LINEST(E46:I46,$E$9:$I$10,TRUE,TRUE) -> 2.245367143 | L46: 0.002422369689 | M46: 0.0005260066461 | O46: 36 Asparagus | Q46: a1fj_1_Asparagus | R46: a1fj_2_Asparagus | S46: a1fj_5_Asparagus | T46: a1fj_10_Asparagus | U46: a1fj_15_Asparagus | X46: 1.813244 | Y46: 3.622919 | Z46: 9.030072 | AA46: 17.968298 | AB46: 26.816448 | AD46: =LINEST(X46:AB46,$X$9:$AB$10,TRUE,TRUE) -> 1.8150211 | AE46: -0.001818202906 | AF46: 0.0001493475646 | AH46: a1fvj_1_Asparagus | AI46: a1fvj_2_Asparagus | AJ46: a1fvj_5_Asparagus | AK46: a1fvj_10_Asparagus | AL46: a1fvj_15_Asparagus | AO46: =IF('Adoption profile'!$C$3=Sets!$B$3,'prod sims'!K46,'prod sims'!AD46) -> 2.245367143 | AP46: =IF('Adoption profile'!$C$3=Sets!$B$3,'prod sims'!L46,'prod sims'!AE46) -> 0.002422369689 | AQ46: =IF('Adoption profile'!$C$3=Sets!$B$3,'prod sims'!M46,'prod sims'!AF46) -> 0.0005260066461
B47: 37 | C47: Mushrooms | D47: Mushrooms | E47: 0.940304 | F47: 1.873266 | G47: 4.630161 | H47: 9.096006 | I47: 13.417804 | K47: =LINEST(E47:I47,$E$9:$I$10,TRUE,TRUE) -> 0.939697427 | L47: -0.003038548743 | M47: 0.005242142885 | O47: 37 Mushrooms | Q47: a1fj_1_Mushrooms | R47: a1fj_2_Mushrooms | S47: a1fj_5_Mushrooms | T47: a1fj_10_Mushrooms | U47: a1fj_15_Mushrooms | X47: 0.335271 | Y47: 0.665662 | Z47: 1.628691 | AA47: 3.146205 | AB47: 4.564456 | AD47: =LINEST(X47:AB47,$X$9:$AB$10,TRUE,TRUE) -> 0.335236712 | AE47: -0.002078216935 | AF47: 0.003048103433 | AH47: a1fvj_1_Mushrooms | AI47: a1fvj_2_Mushrooms | AJ47: a1fvj_5_Mushrooms | AK47: a1fvj_10_Mushrooms | AL47: a1fvj_15_Mushrooms | AO47: =IF('Adoption profile'!$C$3=Sets!$B$3,'prod sims'!K47,'prod sims'!AD47) -> 0.939697427 | AP47: =IF('Adoption profile'!$C$3=Sets!$B$3,'prod sims'!L47,'prod sims'!AE47) -> -0.003038548743 | AQ47: =IF('Adoption profile'!$C$3=Sets!$B$3,'prod sims'!M47,'prod sims'!AF47) -> 0.005242142885
B48: 38 | C48: Garlic_herb | D48: Garlic and herbs | E48: 1.074883 | F48: 2.133645 | G48: 5.216808 | H48: 10.066546 | I48: 14.592777 | K48: =LINEST(E48:I48,$E$9:$I$10,TRUE,TRUE) -> 1.074200696 | L48: -0.006812445441 | M48: 0.01089083587 | O48: 38 Garlic_herb | Q48: a1fj_1_Garlic_herb | R48: a1fj_2_Garlic_herb | S48: a1fj_5_Garlic_herb | T48: a1fj_10_Garlic_herb | U48: a1fj_15_Garlic_herb | X48: 0.482999 | Y48: 0.957817 | Z48: 2.335243 | AA48: 4.485653 | AB48: 6.472989 | AD48: =LINEST(X48:AB48,$X$9:$AB$10,TRUE,TRUE) -> 0.4825754097 | AE48: -0.003431283384 | AF48: 0.005563616313 | AH48: a1fvj_1_Garlic_herb | AI48: a1fvj_2_Garlic_herb | AJ48: a1fvj_5_Garlic_herb | AK48: a1fvj_10_Garlic_herb | AL48: a1fvj_15_Garlic_herb | AO48: =IF('Adoption profile'!$C$3=Sets!$B$3,'prod sims'!K48,'prod sims'!AD48) -> 1.074200696 | AP48: =IF('Adoption profile'!$C$3=Sets!$B$3,'prod sims'!L48,'prod sims'!AE48) -> -0.006812445441 | AQ48: =IF('Adoption profile'!$C$3=Sets!$B$3,'prod sims'!M48,'prod sims'!AF48) -> 0.01089083587
B49: 39 | C49: O_veg | D49: Other vegetables | E49: 1.025424 | F49: 2.050204 | G49: 5.121743 | H49: 10.232007 | I49: 15.333733 | K49: =LINEST(E49:I49,$E$9:$I$10,TRUE,TRUE) -> 1.025103324 | L49: -0.000193950451 | M49: 0.0007107424638 | O49: 39 O_veg | Q49: a1fj_1_O_veg | R49: a1fj_2_O_veg | S49: a1fj_5_O_veg | T49: a1fj_10_O_veg | U49: a1fj_15_O_veg | X49: 0.356097 | Y49: 0.707735 | Z49: 1.736788 | AA49: 3.370669 | AB49: 4.911244 | AD49: =LINEST(X49:AB49,$X$9:$AB$10,TRUE,TRUE) -> 0.3563457665 | AE49: -0.001941135717 | AF49: 0.00244517704 | AH49: a1fvj_1_O_veg | AI49: a1fvj_2_O_veg | AJ49: a1fvj_5_O_veg | AK49: a1fvj_10_O_veg | AL49: a1fvj_15_O_veg | AO49: =IF('Adoption profile'!$C$3=Sets!$B$3,'prod sims'!K49,'prod sims'!AD49) -> 1.025103324 | AP49: =IF('Adoption profile'!$C$3=Sets!$B$3,'prod sims'!L49,'prod sims'!AE49) -> -0.000193950451 | AQ49: =IF('Adoption profile'!$C$3=Sets!$B$3,'prod sims'!M49,'prod sims'!AF49) -> 0.0007107424638
A50: 1 | B50: 40 | C50: Nursery | D50: Nursery | E50: 0.282606 | F50: 0.563232 | G50: 1.393674 | H50: 2.742347 | I50: 4.051243 | K50: =LINEST(E50:I50,$E$9:$I$10,TRUE,TRUE) -> 0.2825273201 | L50: -0.0008364111335 | M50: 0.001325277943 | O50: =A50&" "&C50 -> 1 Nursery | Q50: a1fj_1_Nursery | R50: a1fj_2_Nursery | S50: a1fj_5_Nursery | T50: a1fj_10_Nursery | U50: a1fj_15_Nursery | X50: 0.117721 | Y50: 0.233947 | Z50: 0.573987 | AA50: 1.1137 | AB50: 1.622555 | AD50: =LINEST(X50:AB50,$X$9:$AB$10,TRUE,TRUE) -> 0.1177610503 | AE50: -0.0006438352281 | AF50: 0.0008713690769 | AH50: a1fvj_1_Nursery | AI50: a1fvj_2_Nursery | AJ50: a1fvj_5_Nursery | AK50: a1fvj_10_Nursery | AL50: a1fvj_15_Nursery | AO50: =IF('Adoption profile'!$C$3=Sets!$B$3,'prod sims'!K50,'prod sims'!AD50) -> 0.2825273201 | AP50: =IF('Adoption profile'!$C$3=Sets!$B$3,'prod sims'!L50,'prod sims'!AE50) -> -0.0008364111335 | AQ50: =IF('Adoption profile'!$C$3=Sets!$B$3,'prod sims'!M50,'prod sims'!AF50) -> 0.001325277943
A51: 2 | B51: 41 | C51: Turf | D51: Cultivated turf | E51: 0.405849 | F51: 0.809094 | G51: 2.003585 | H51: 3.945722 | I51: 5.83062 | K51: =LINEST(E51:I51,$E$9:$I$10,TRUE,TRUE) -> 0.4062926062 | L51: -0.001177749572 | M51: 0.001063018577 | O51: =A51&" "&C51 -> 2 Turf | Q51: a1fj_1_Turf | R51: a1fj_2_Turf | S51: a1fj_5_Turf | T51: a1fj_10_Turf | U51: a1fj_15_Turf | X51: 0.203371 | Y51: 0.40433 | Z51: 0.993193 | AA51: 1.930559 | AB51: 2.817163 | AD51: =LINEST(X51:AB51,$X$9:$AB$10,TRUE,TRUE) -> 0.2035344068 | AE51: -0.00105482697 | AF51: 0.001288829781 | AH51: a1fvj_1_Turf | AI51: a1fvj_2_Turf | AJ51: a1fvj_5_Turf | AK51: a1fvj_10_Turf | AL51: a1fvj_15_Turf | AO51: =IF('Adoption profile'!$C$3=Sets!$B$3,'prod sims'!K51,'prod sims'!AD51) -> 0.4062926062 | AP51: =IF('Adoption profile'!$C$3=Sets!$B$3,'prod sims'!L51,'prod sims'!AE51) -> -0.001177749572 | AQ51: =IF('Adoption profile'!$C$3=Sets!$B$3,'prod sims'!M51,'prod sims'!AF51) -> 0.001063018577
A52: 3 | B52: 42 | C52: Cut_flowers | D52: Cut flowers | E52: 0.883504 | F52: 1.766358 | G52: 4.412233 | H52: 8.814374 | I52: 13.212066 | K52: =LINEST(E52:I52,$E$9:$I$10,TRUE,TRUE) -> 0.8827110334 | L52: -0.0001339657358 | M52: 0.001325746743 | O52: 3 Cut_flowers | Q52: a1fj_1_Cut_flowers | R52: ="a1fj_2_"&$C52 -> a1fj_2_Cut_flowers | S52: ="a1fj_5_"&$C52 -> a1fj_5_Cut_flowers | T52: ="a1fj_10_"&$C52 -> a1fj_10_Cut_flowers | U52: ="a1fj_15_"&$C52 -> a1fj_15_Cut_flowers | X52: 0.365045 | Y52: 0.726024 | Z52: 1.785372 | AA52: 3.47681 | AB52: 5.082911 | AD52: =LINEST(X52:AB52,$X$9:$AB$10,TRUE,TRUE) -> 0.3653008861 | AE52: -0.001773884015 | AF52: 0.002192316633 | AH52: a1fvj_1_Cut_flowers | AI52: a1fvj_2_Cut_flowers | AJ52: a1fvj_5_Cut_flowers | AK52: a1fvj_10_Cut_flowers | AL52: a1fvj_15_Cut_flowers | AO52: =IF('Adoption profile'!$C$3=Sets!$B$3,'prod sims'!K52,'prod sims'!AD52) -> 0.8827110334 | AP52: =IF('Adoption profile'!$C$3=Sets!$B$3,'prod sims'!L52,'prod sims'!AE52) -> -0.0001339657358 | AQ52: =IF('Adoption profile'!$C$3=Sets!$B$3,'prod sims'!M52,'prod sims'!AF52) -> 0.001325746743
A53: 1 | B53: 43 | C53: Froz_potato | D53: Frozen potatoes | E53: 1.843446 | F53: 3.63586 | G53: 8.700638 | H53: 16.119751 | I53: 22.400677 | K53: =LINEST(E53:I53,$E$9:$I$10,TRUE,TRUE) -> 1.85082847 | L53: -0.02397511556 | M53: 0.02683970194 | O53: 1 Froz_potato | Q53: ="a1pj_1_"&$C53 -> a1pj_1_Froz_potato | R53: ="a1pj_2_"&$C53 -> a1pj_2_Froz_potato | S53: ="a1pj_5_"&$C53 -> a1pj_5_Froz_potato | T53: ="a1pj_10_"&$C53 -> a1pj_10_Froz_potato | U53: ="a1pj_15_"&$C53 -> a1pj_15_Froz_potato | X53: 0.291767 | Y53: 0.577508 | Z53: 1.400309 | AA53: 2.666389 | AB53: 3.81606 | AD53: =LINEST(X53:AB53,$X$9:$AB$10,TRUE,TRUE) -> 0.2910594251 | AE53: -0.002467060446 | AF53: 0.004575685903 | AH53: ="a1pvj_1_"&$C53 -> a1pvj_1_Froz_potato | AI53: ="a1pvj_2_"&$C53 -> a1pvj_2_Froz_potato | AJ53: ="a1pvj_5_"&$C53 -> a1pvj_5_Froz_potato | AK53: ="a1pvj_10_"&$C53 -> a1pvj_10_Froz_potato | AL53: ="a1pvj_15_"&$C53 -> a1pvj_15_Froz_potato | AO53: =IF('Adoption profile'!$C$3=Sets!$B$3,'prod sims'!K53,'prod sims'!AD53) -> 1.85082847 | AP53: =IF('Adoption profile'!$C$3=Sets!$B$3,'prod sims'!L53,'prod sims'!AE53) -> -0.02397511556 | AQ53: =IF('Adoption profile'!$C$3=Sets!$B$3,'prod sims'!M53,'prod sims'!AF53) -> 0.02683970194
A54: 2 | B54: 44 | C54: Can_tomato | D54: Canned tomatoes | E54: 3.740196 | F54: 7.388637 | G54: 17.726599 | H54: 32.797432 | I54: 45.307129 | K54: =LINEST(E54:I54,$E$9:$I$10,TRUE,TRUE) -> 3.804708341 | L54: -0.05226695209 | M54: -0.008122854136 | O54: 2 Can_tomato | Q54: ="a1pj_1_"&$C54 -> a1pj_1_Can_tomato | R54: ="a1pj_2_"&$C54 -> a1pj_2_Can_tomato | S54: ="a1pj_5_"&$C54 -> a1pj_5_Can_tomato | T54: ="a1pj_10_"&$C54 -> a1pj_10_Can_tomato | U54: ="a1pj_15_"&$C54 -> a1pj_15_Can_tomato | X54: 0.690904 | Y54: 1.36817 | Z54: 3.321487 | AA54: 6.334332 | AB54: 9.075057 | AD54: =LINEST(X54:AB54,$X$9:$AB$10,TRUE,TRUE) -> 0.6902104465 | AE54: -0.005727926715 | AF54: 0.009283849632 | AH54: a1pvj_1_Can_tomato | AI54: a1pvj_2_Can_tomato | AJ54: a1pvj_5_Can_tomato | AK54: a1pvj_10_Can_tomato | AL54: a1pvj_15_Can_tomato | AO54: =IF('Adoption profile'!$C$3=Sets!$B$3,'prod sims'!K54,'prod sims'!AD54) -> 3.804708341 | AP54: =IF('Adoption profile'!$C$3=Sets!$B$3,'prod sims'!L54,'prod sims'!AE54) -> -0.05226695209 | AQ54: =IF('Adoption profile'!$C$3=Sets!$B$3,'prod sims'!M54,'prod sims'!AF54) -> -0.008122854136
A55: 3 | B55: 45 | C55: O_Proc_veg | D55: Other processed vegetables | E55: 2.57554 | F55: 5.168738 | G55: 13.038849 | H55: 26.356525 | I55: 39.72398 | K55: =LINEST(E55:I55,$E$9:$I$10,TRUE,TRUE) -> 2.61031931 | L55: 0.002814603168 | M55: -0.05521787124 | O55: 3 O_Proc_veg | Q55: a1pj_1_O_Proc_veg | R55: a1pj_2_O_Proc_veg | S55: a1pj_5_O_Proc_veg | T55: a1pj_10_O_Proc_veg | U55: a1pj_15_O_Proc_veg | X55: 0.35606 | Y55: 0.705925 | Z55: 1.719927 | AA55: 3.299933 | AB55: 4.756405 | AD55: =LINEST(X55:AB55,$X$9:$AB$10,TRUE,TRUE) -> 0.3557497226 | AE55: -0.00259850505 | AF55: 0.004195689501 | AH55: a1pvj_1_O_Proc_veg | AI55: a1pvj_2_O_Proc_veg | AJ55: a1pvj_5_O_Proc_veg | AK55: a1pvj_10_O_Proc_veg | AL55: a1pvj_15_O_Proc_veg | AO55: =IF('Adoption profile'!$C$3=Sets!$B$3,'prod sims'!K55,'prod sims'!AD55) -> 2.61031931 | AP55: =IF('Adoption profile'!$C$3=Sets!$B$3,'prod sims'!L55,'prod sims'!AE55) -> 0.002814603168 | AQ55: =IF('Adoption profile'!$C$3=Sets!$B$3,'prod sims'!M55,'prod sims'!AF55) -> -0.05521787124
A56: 4 | B56: 46 | C56: P_fru_jams | D56: Processed fruits and jams | E56: 4.921425 | F56: 9.434702 | G56: 21.422173 | H56: 38.16502 | I56: 52.076225 | K56: =LINEST(E56:I56,$E$9:$I$10,TRUE,TRUE) -> 4.455058941 | L56: -0.0689140419 | M56: 0.6934169619 | O56: 4 P_fru_jams | Q56: a1pj_1_P_fru_jams | R56: a1pj_2_P_fru_jams | S56: a1pj_5_P_fru_jams | T56: a1pj_10_P_fru_jams | U56: a1pj_15_P_fru_jams | X56: 0.984784 | Y56: 1.927229 | Z56: 4.537202 | AA56: 8.315779 | AB56: 11.559917 | AD56: =LINEST(X56:AB56,$X$9:$AB$10,TRUE,TRUE) -> 0.9514839541 | AE56: -0.01237590679 | AF56: 0.06387748494 | AH56: a1pvj_1_P_fru_jams | AI56: a1pvj_2_P_fru_jams | AJ56: a1pvj_5_P_fru_jams | AK56: a1pvj_10_P_fru_jams | AL56: a1pvj_15_P_fru_jams | AO56: =IF('Adoption profile'!$C$3=Sets!$B$3,'prod sims'!K56,'prod sims'!AD56) -> 4.455058941 | AP56: =IF('Adoption profile'!$C$3=Sets!$B$3,'prod sims'!L56,'prod sims'!AE56) -> -0.0689140419 | AQ56: =IF('Adoption profile'!$C$3=Sets!$B$3,'prod sims'!M56,'prod sims'!AF56) -> 0.6934169619
A57: 5 | B57: 47 | C57: Juice | D57: Orange and other juice | E57: 3.472453 | F57: 6.862778 | G57: 16.550892 | H57: 31.208881 | I57: 44.346912 | K57: =LINEST(E57:I57,$E$9:$I$10,TRUE,TRUE) -> 3.451485145 | L57: -0.03343280169 | M57: 0.08231016465 | O57: 5 Juice | Q57: a1pj_1_Juice | R57: a1pj_2_Juice | S57: a1pj_5_Juice | T57: a1pj_10_Juice | U57: a1pj_15_Juice | X57: 0.63943 | Y57: 1.265661 | Z57: 3.069143 | AA57: 5.845852 | AB57: 8.370333 | AD57: =LINEST(X57:AB57,$X$9:$AB$10,TRUE,TRUE) -> 0.6375925897 | AE57: -0.005357565421 | AF57: 0.01035985311 | AH57: a1pvj_1_Juice | AI57: a1pvj_2_Juice | AJ57: a1pvj_5_Juice | AK57: a1pvj_10_Juice | AL57: a1pvj_15_Juice | AO57: =IF('Adoption profile'!$C$3=Sets!$B$3,'prod sims'!K57,'prod sims'!AD57) -> 3.451485145 | AP57: =IF('Adoption profile'!$C$3=Sets!$B$3,'prod sims'!L57,'prod sims'!AE57) -> -0.03343280169 | AQ57: =IF('Adoption profile'!$C$3=Sets!$B$3,'prod sims'!M57,'prod sims'!AF57) -> 0.08231016465
A58: 6 | B58: 48 | C58: Olive_oil | D58: Olive oil | E58: 4.297753 | F58: 8.609793 | G58: 21.540241 | H58: 42.622959 | I58: 62.624771 | K58: =LINEST(E58:I58,$E$9:$I$10,TRUE,TRUE) -> 4.442551025 | L58: -0.01693846435 | M58: -0.1791023939 | O58: 6 Olive_oil | Q58: a1pj_1_Olive_oil | R58: a1pj_2_Olive_oil | S58: a1pj_5_Olive_oil | T58: a1pj_10_Olive_oil | U58: a1pj_15_Olive_oil | X58: 0.189788 | Y58: 0.376064 | Z58: 0.914767 | AA58: 1.7507 | AB58: 2.517572 | AD58: =LINEST(X58:AB58,$X$9:$AB$10,TRUE,TRUE) -> 0.1895074359 | AE58: -0.001457419113 | AF58: 0.002505880402 | AH58: a1pvj_1_Olive_oil | AI58: a1pvj_2_Olive_oil | AJ58: a1pvj_5_Olive_oil | AK58: a1pvj_10_Olive_oil | AL58: a1pvj_15_Olive_oil | AO58: =IF('Adoption profile'!$C$3=Sets!$B$3,'prod sims'!K58,'prod sims'!AD58) -> 4.442551025 | AP58: =IF('Adoption profile'!$C$3=Sets!$B$3,'prod sims'!L58,'prod sims'!AE58) -> -0.01693846435 | AQ58: =IF('Adoption profile'!$C$3=Sets!$B$3,'prod sims'!M58,'prod sims'!AF58) -> -0.1791023939

Sheet Sets (hidden)
B3: Multifactor productivity
B4: Labour productivity
B7: Speed parameters
B8: Very quick | C8: 1
B9: Quick | C9: 0.75
B10: Normal | C10: 0.5
B11: Slow | C11: 0.3
B12: Very slow | C12: 0.1
A18: Parameter | B18: Lower bound | C18: Upper bound | D18: Average score | E18: Implied value
A19: Maximum adoption rate | B19: 0.2 | C19: 0.9 | D19: =Questionnaire!C12 -> 4.833333333 | E19: =$B$19+(D19-1)*($C$19-$B$19)/4 -> 0.8708333333 | O19: Break
A20: Year of half adoption | B20: 2026 | C20: 2040 | D20: =Questionnaire!C21 -> 5 | E20: =$C$20-($C$20-$B$20)*(D20-1)/4 -> 2026 | M20: Very slow | N20: 0.1 | O20: 0
A21: Speed of adoption | B21: 0.1 | C21: 1 | D21: =Questionnaire!C30 -> 4 | E21: =LOOKUP(F25,O20:O24,M20:M24) -> Quick | M21: Slow | N21: 0.3 | O21: 0.2
M22: Normal | N22: 0.5 | O22: 0.4
M23: Quick | N23: 0.75 | O23: 0.625
M24: Very quick | N24: 1 | O24: 0.875
F25: =$B$21+(D21-1)*($C$21-$B$21)/4 -> 0.775

Sheet Sheet7 (hidden)

Sheet Sheet8

Sheet Sheet9

Sheet Sheet10
